{"text_format":"3","workbook":"xlsx","n_sheets":4,"sheets":["Відстеження оцінок","Продуктивність","Настройки","Обчислення"],"not_rendered":{"defined_names":3},"read":"whole","date_system":"1900"}

{"sheet":"Відстеження оцінок","index":0,"n_rows":14,"n_cols":6,"rows_kept":14}
[null,"Введіть свою оцінку тут"]
[]
[null,null,"Предмет","Тип","Опис","Оцінка"]
[null,null,"Сучасна французька мова","Домашнє завдання","Історія II світової війни",{"v":0.8,"d":"80%"}]
[null,null,"Поглиблене програмування на Java","Семінар",null,{"v":0.75,"d":"75%"}]
[null,null,"Іспанська мова","Домашнє завдання",null,{"v":0.5,"d":"50%"}]
[null,null,"Теоретична фізика","Домашнє завдання",null,{"v":0.95,"d":"95%"}]
[null,null,"Сучасна французька мова","Домашнє завдання","Історія I світової війни",{"v":0.9,"d":"90%"}]
[null,null,"Сучасна французька мова","Домашнє завдання","стор. 30 - 41",{"v":0.8,"d":"80%"}]
[null,null,"Твір","Нарис","Наукова робота",{"v":0.95,"d":"95%"}]
[null,null,"Математика 1","Домашнє завдання","стор. 21 і 26",{"v":0.8,"d":"80%"}]
[null,null,"Математика 2","Домашнє завдання","стор. 15 і 18",{"v":0.85,"d":"85%"}]
[null,null,"Математика 1","Домашнє завдання","стор. 34 - 36",{"v":0.8,"d":"80%"}]
[null,null,"Математика 2","Вікторина",null,{"v":0.95,"d":"95%"}]

{"sheet":"Продуктивність","index":1,"n_rows":31,"n_cols":8,"rows_kept":31}
[null,"Продуктивність"]
[]
[null,null,"Усього"]
[null,null,{"$f":"\"Години: \"&SUM(tblКласи[Заліковий час (кредит)])","v":"Години: 24"},{"$f":"AVERAGE(D7:D31)","v":{"v":0.8104761904761906,"d":"81%"}},{"$f":"AVERAGE(E7:E31)","v":{"v":2.7142857142857144,"d":"2.71"}},{"$f":"SUM(F7:F31)","v":{"v":2.625,"d":"2.63"}},{"$f":"IFERROR(HLOOKUP(D4,Відображення_середнього_бала_оцінки_знань,2),\"\")","v":"B-"}]
[]
[null,null,"Предмети","%","Середній бал","Обчислений середній бал","Буква","Загальна продуктивність"]
[null,null,{"$f":"Обчислення!C6","v":"Сучасна французька мова"},{"$f":"Обчислення!AL6","v":{"v":0.8333333333333334,"d":"83%"}},{"$f":"Обчислення!AM6","v":{"v":3,"d":"3.00"}},{"$f":"IFERROR(E7*Настройки!D9/SUM(tblКласи[Заліковий час (кредит)]),\"\")","v":{"v":0.375,"d":"0.38"}},{"$f":"Обчислення!AN6","v":"B"}]
[null,null,{"$f":"Обчислення!C7","v":"Теоретична фізика"},{"$f":"Обчислення!AL7","v":{"v":0.95,"d":"95%"}},{"$f":"Обчислення!AM7","v":{"v":4,"d":"4.00"}},{"$f":"IFERROR(E8*Настройки!D10/SUM(tblКласи[Заліковий час (кредит)]),\"\")","v":{"v":0.5,"d":"0.50"}},{"$f":"Обчислення!AN7","v":"A"}]
[null,null,{"$f":"Обчислення!C8","v":"Математика 1"},{"$f":"Обчислення!AL8","v":{"v":0.8000000000000002,"d":"80%"}},{"$f":"Обчислення!AM8","v":2.67},{"$f":"IFERROR(E9*Настройки!D11/SUM(tblКласи[Заліковий час (кредит)]),\"\")","v":{"v":0.445,"d":"0.45"}},{"$f":"Обчислення!AN8","v":"B-"}]
[null,null,{"$f":"Обчислення!C9","v":"Математика 2"},{"$f":"Обчислення!AL9","v":{"v":0.89,"d":"89%"}},{"$f":"Обчислення!AM9","v":3.33},{"$f":"IFERROR(E10*Настройки!D12/SUM(tblКласи[Заліковий час (кредит)]),\"\")","v":{"v":0.555,"d":"0.56"}},{"$f":"Обчислення!AN9","v":"B+"}]
[null,null,{"$f":"Обчислення!C10","v":"Поглиблене програмування на Java"},{"$f":"Обчислення!AL10","v":{"v":0.7500000000000001,"d":"75%"}},{"$f":"Обчислення!AM10","v":{"v":2,"d":"2.00"}},{"$f":"IFERROR(E11*Настройки!D13/SUM(tblКласи[Заліковий час (кредит)]),\"\")","v":{"v":0.4166666666666667,"d":"0.42"}},{"$f":"Обчислення!AN10","v":"C"}]
[null,null,{"$f":"Обчислення!C11","v":"Іспанська мова"},{"$f":"Обчислення!AL11","v":{"v":0.5,"d":"50%"}},{"$f":"Обчислення!AM11","v":{"v":0,"d":"0.00"}},{"$f":"IFERROR(E12*Настройки!D14/SUM(tblКласи[Заліковий час (кредит)]),\"\")","v":{"v":0,"d":"0.00"}},{"$f":"Обчислення!AN11","v":"F"}]
[null,null,{"$f":"Обчислення!C12","v":"Твір"},{"$f":"Обчислення!AL12","v":{"v":0.95,"d":"95%"}},{"$f":"Обчислення!AM12","v":{"v":4,"d":"4.00"}},{"$f":"IFERROR(E13*Настройки!D15/SUM(tblКласи[Заліковий час (кредит)]),\"\")","v":{"v":0.3333333333333333,"d":"0.33"}},{"$f":"Обчислення!AN12","v":"A"}]
[null,null,{"$f":"Обчислення!C13","v":""},{"$f":"Обчислення!AL13","v":""},{"$f":"Обчислення!AM13","v":""},{"$f":"IFERROR(E14*Настройки!D16/SUM(tblКласи[Заліковий час (кредит)]),\"\")","v":""},{"$f":"Обчислення!AN13","v":""}]
[null,null,{"$f":"Обчислення!C14","v":""},{"$f":"Обчислення!AL14","v":""},{"$f":"Обчислення!AM14","v":""},{"$f":"IFERROR(E15*Настройки!D17/SUM(tblКласи[Заліковий час (кредит)]),\"\")","v":""},{"$f":"Обчислення!AN14","v":""}]
[null,null,{"$f":"Обчислення!C15","v":""},{"$f":"Обчислення!AL15","v":""},{"$f":"Обчислення!AM15","v":""},{"$f":"IFERROR(E16*Настройки!D18/SUM(tblКласи[Заліковий час (кредит)]),\"\")","v":""},{"$f":"Обчислення!AN15","v":""}]
[null,null,{"$f":"Обчислення!C16","v":""},{"$f":"Обчислення!AL16","v":""},{"$f":"Обчислення!AM16","v":""},{"$f":"IFERROR(E17*Настройки!D19/SUM(tblКласи[Заліковий час (кредит)]),\"\")","v":""},{"$f":"Обчислення!AN16","v":""}]
[null,null,{"$f":"Обчислення!C17","v":""},{"$f":"Обчислення!AL17","v":""},{"$f":"Обчислення!AM17","v":""},{"$f":"IFERROR(E18*Настройки!D20/SUM(tblКласи[Заліковий час (кредит)]),\"\")","v":""},{"$f":"Обчислення!AN17","v":""}]
[null,null,{"$f":"Обчислення!C18","v":""},{"$f":"Обчислення!AL18","v":""},{"$f":"Обчислення!AM18","v":""},{"$f":"IFERROR(E19*Настройки!D21/SUM(tblКласи[Заліковий час (кредит)]),\"\")","v":""},{"$f":"Обчислення!AN18","v":""}]
[null,null,{"$f":"Обчислення!C19","v":""},{"$f":"Обчислення!AL19","v":""},{"$f":"Обчислення!AM19","v":""},{"$f":"IFERROR(E20*Настройки!D22/SUM(tblКласи[Заліковий час (кредит)]),\"\")","v":""},{"$f":"Обчислення!AN19","v":""}]
[null,null,{"$f":"Обчислення!C20","v":""},{"$f":"Обчислення!AL20","v":""},{"$f":"Обчислення!AM20","v":""},{"$f":"IFERROR(E21*Настройки!D23/SUM(tblКласи[Заліковий час (кредит)]),\"\")","v":""},{"$f":"Обчислення!AN20","v":""}]
[null,null,{"$f":"Обчислення!C21","v":""},{"$f":"Обчислення!AL21","v":""},{"$f":"Обчислення!AM21","v":""},{"$f":"IFERROR(E22*Настройки!D24/SUM(tblКласи[Заліковий час (кредит)]),\"\")","v":""},{"$f":"Обчислення!AN21","v":""}]
[null,null,{"$f":"Обчислення!C22","v":""},{"$f":"Обчислення!AL22","v":""},{"$f":"Обчислення!AM22","v":""},{"$f":"IFERROR(E23*Настройки!D25/SUM(tblКласи[Заліковий час (кредит)]),\"\")","v":""},{"$f":"Обчислення!AN22","v":""}]
[null,null,{"$f":"Обчислення!C23","v":""},{"$f":"Обчислення!AL23","v":""},{"$f":"Обчислення!AM23","v":""},{"$f":"IFERROR(E24*Настройки!D26/SUM(tblКласи[Заліковий час (кредит)]),\"\")","v":""},{"$f":"Обчислення!AN23","v":""}]
[null,null,{"$f":"Обчислення!C24","v":""},{"$f":"Обчислення!AL24","v":""},{"$f":"Обчислення!AM24","v":""},{"$f":"IFERROR(E25*Настройки!D27/SUM(tblКласи[Заліковий час (кредит)]),\"\")","v":""},{"$f":"Обчислення!AN24","v":""}]
[null,null,{"$f":"Обчислення!C25","v":""},{"$f":"Обчислення!AL25","v":""},{"$f":"Обчислення!AM25","v":""},{"$f":"IFERROR(E26*Настройки!D28/SUM(tblКласи[Заліковий час (кредит)]),\"\")","v":""},{"$f":"Обчислення!AN25","v":""}]
[null,null,{"$f":"Обчислення!C26","v":""},{"$f":"Обчислення!AL26","v":""},{"$f":"Обчислення!AM26","v":""},{"$f":"IFERROR(E27*Настройки!D29/SUM(tblКласи[Заліковий час (кредит)]),\"\")","v":""},{"$f":"Обчислення!AN26","v":""}]
[null,null,{"$f":"Обчислення!C27","v":""},{"$f":"Обчислення!AL27","v":""},{"$f":"Обчислення!AM27","v":""},{"$f":"IFERROR(E28*Настройки!D30/SUM(tblКласи[Заліковий час (кредит)]),\"\")","v":""},{"$f":"Обчислення!AN27","v":""}]
[null,null,{"$f":"Обчислення!C28","v":""},{"$f":"Обчислення!AL28","v":""},{"$f":"Обчислення!AM28","v":""},{"$f":"IFERROR(E29*Настройки!D31/SUM(tblКласи[Заліковий час (кредит)]),\"\")","v":""},{"$f":"Обчислення!AN28","v":""}]
[null,null,{"$f":"Обчислення!C29","v":""},{"$f":"Обчислення!AL29","v":""},{"$f":"Обчислення!AM29","v":""},{"$f":"IFERROR(E30*Настройки!D32/SUM(tblКласи[Заліковий час (кредит)]),\"\")","v":""},{"$f":"Обчислення!AN29","v":""}]
[null,null,{"$f":"Обчислення!C30","v":""},{"$f":"Обчислення!AL30","v":""},{"$f":"Обчислення!AM30","v":""},{"$f":"IFERROR(E31*Настройки!D33/SUM(tblКласи[Заліковий час (кредит)]),\"\")","v":""},{"$f":"Обчислення!AN30","v":""}]

{"sheet":"Настройки","index":2,"n_rows":15,"n_cols":16,"rows_kept":15,"merged":[[5,2,5,15]]}
[null,"Настройки"]
[null,null,"Оцінки та зіставлення середнього балу"]
[null,null,"Відсоток",{"v":0,"d":"0%"},{"v":0.6,"d":"60%"},{"v":0.63,"d":"63%"},{"v":0.67,"d":"67%"},{"v":0.7,"d":"70%"},{"v":0.73,"d":"73%"},{"v":0.77,"d":"77%"},{"v":0.8,"d":"80%"},{"v":0.83,"d":"83%"},{"v":0.87,"d":"87%"},{"v":0.9,"d":"90%"},{"v":0.93,"d":"93%"},{"v":0.97,"d":"97%"}]
[null,null,"Буквена оцінка","F","D-","D","D+","C-","C","C+","B-","B","B+","A-","A","A+"]
[null,null,"Середній бал",0,0.67,1,1.33,1.67,2,2.33,2.67,3,3.33,3.67,4,4]
[]
[null,null,"Обчислені рівні всього для 25 предметів"]
[null,null,"Предмети, які відвідуються","Заліковий час (кредит)","Домашнє завдання","Нарис","Вікторина","Проект","Семінар","Підсумковий іспит","Інші","% Усього"]
[null,null,"Сучасна французька мова",{"v":3,"d":"3.0"},{"v":0.1,"d":"10%"},{"v":0.15,"d":"15%"},{"v":0.15,"d":"15%"},{"v":0.1,"d":"10%"},{"v":0.2,"d":"20%"},{"v":0.3,"d":"30%"},null,{"$f":"SUM(tblКласи[[#This Row],[Домашнє завдання]:[Інші]])","v":{"v":1,"d":"100%"}}]
[null,null,"Теоретична фізика",{"v":3,"d":"3.0"},{"v":0.15,"d":"15%"},{"v":0.15,"d":"15%"},{"v":0.1,"d":"10%"},{"v":0.1,"d":"10%"},{"v":0.15,"d":"15%"},{"v":0.3,"d":"30%"},{"v":0.05,"d":"5%"},{"$f":"SUM(tblКласи[[#This Row],[Домашнє завдання]:[Інші]])","v":{"v":1,"d":"100%"}}]
[null,null,"Математика 1",{"v":4,"d":"4.0"},{"v":0.1,"d":"10%"},{"v":0.15,"d":"15%"},{"v":0.15,"d":"15%"},{"v":0.1,"d":"10%"},{"v":0.2,"d":"20%"},{"v":0.3,"d":"30%"},null,{"$f":"SUM(tblКласи[[#This Row],[Домашнє завдання]:[Інші]])","v":{"v":1,"d":"100%"}}]
[null,null,"Математика 2",{"v":4,"d":"4.0"},{"v":0.15,"d":"15%"},{"v":0.15,"d":"15%"},{"v":0.1,"d":"10%"},{"v":0.1,"d":"10%"},{"v":0.15,"d":"15%"},{"v":0.3,"d":"30%"},{"v":0.05,"d":"5%"},{"$f":"SUM(tblКласи[[#This Row],[Домашнє завдання]:[Інші]])","v":{"v":1,"d":"100%"}}]
[null,null,"Поглиблене програмування на Java",{"v":5,"d":"5.0"},{"v":0.15,"d":"15%"},{"v":0.15,"d":"15%"},{"v":0.1,"d":"10%"},{"v":0.1,"d":"10%"},{"v":0.2,"d":"20%"},{"v":0.3,"d":"30%"},null,{"$f":"SUM(tblКласи[[#This Row],[Домашнє завдання]:[Інші]])","v":{"v":1,"d":"100%"}}]
[null,null,"Іспанська мова",{"v":3,"d":"3.0"},{"v":0.1,"d":"10%"},{"v":0.15,"d":"15%"},{"v":0.17,"d":"17%"},{"v":0.13,"d":"13%"},{"v":0.2,"d":"20%"},{"v":0.2,"d":"20%"},{"v":0.05,"d":"5%"},{"$f":"SUM(tblКласи[[#This Row],[Домашнє завдання]:[Інші]])","v":{"v":1,"d":"100%"}}]
[null,null,"Твір",{"v":2,"d":"2.0"},{"v":0.15,"d":"15%"},{"v":0.15,"d":"15%"},{"v":0.12,"d":"12%"},{"v":0.15,"d":"15%"},{"v":0.15,"d":"15%"},{"v":0.25,"d":"25%"},{"v":0.03,"d":"3%"},{"$f":"SUM(tblКласи[[#This Row],[Домашнє завдання]:[Інші]])","v":{"v":1,"d":"100%"}}]

{"sheet":"Обчислення","index":3,"n_rows":657,"n_cols":40,"rows_kept":657,"hidden":true}
[null,"Обчислення"]
[null,null,"На цьому аркуші наведено обчислення оцінок і середній бал, який має бути прихованим. Будь-яке змінення цього аркуша може призвести до помилки."]
[]
[null,null,"Поточний список предметів","Оцінки (від 1)",{"$nulls":24},"Обчислення оцінок"]
[null,null,"Предмет",1,2,3,4,5,6,7,8,9,10,11,12,13,14,15,16,17,18,19,20,21,22,23,24,25,{"$f":"tblКласи[[#Headers],[Домашнє завдання]]","v":"Домашнє завдання"},{"$f":"tblКласи[[#Headers],[Нарис]]","v":"Нарис"},{"$f":"tblКласи[[#Headers],[Вікторина]]","v":"Вікторина"},{"$f":"tblКласи[[#Headers],[Проект]]","v":"Проект"},{"$f":"tblКласи[[#Headers],[Семінар]]","v":"Семінар"},{"$f":"tblКласи[[#Headers],[Підсумковий іспит]]","v":"Підсумковий іспит"},{"$f":"tblКласи[[#Headers],[Інші]]","v":"Інші"},"Усього","Загальна можлива кількість балів","Усього %","Оцінка в балах","Буквена оцінка"]
[null,null,{"$f":"IF(Настройки!C9=\"\",\"\",Настройки!C9)","v":"Сучасна французька мова"},{"$f":"IFERROR(INDEX(Табл_оцінок[],MATCH($C6:$C30&D$5:AB$5,Обчислення!$C$33:$C$657,0),4),\"\")","v":{"v":0.8,"d":"80%"}},{"v":0.9,"d":"90%"},{"v":0.8,"d":"80%"},"","","","","","","","","","","","","","","","","","","","","","",{"$f":"IFERROR(AVERAGEIFS(Табл_оцінок[Оцінка],Табл_оцінок[Предмет],Обчислення!$C6,Табл_оцінок[Тип],Обчислення!AC$5)*Настройки!E9,\"\")","v":0.08333333333333334},{"$f":"IFERROR(AVERAGEIFS(Табл_оцінок[Оцінка],Табл_оцінок[Предмет],Обчислення!$C6,Табл_оцінок[Тип],Обчислення!AD$5)*Настройки!F9,\"\")","v":""},{"$f":"IFERROR(AVERAGEIFS(Табл_оцінок[Оцінка],Табл_оцінок[Предмет],Обчислення!$C6,Табл_оцінок[Тип],Обчислення!AE$5)*Настройки!G9,\"\")","v":""},{"$f":"IFERROR(AVERAGEIFS(Табл_оцінок[Оцінка],Табл_оцінок[Предмет],Обчислення!$C6,Табл_оцінок[Тип],Обчислення!AF$5)*Настройки!H9,\"\")","v":""},{"$f":"IFERROR(AVERAGEIFS(Табл_оцінок[Оцінка],Табл_оцінок[Предмет],Обчислення!$C6,Табл_оцінок[Тип],Обчислення!AG$5)*Настройки!I9,\"\")","v":""},{"$f":"IFERROR(AVERAGEIFS(Табл_оцінок[Оцінка],Табл_оцінок[Предмет],Обчислення!$C6,Табл_оцінок[Тип],Обчислення!AH$5)*Настройки!J9,\"\")","v":""},{"$f":"IFERROR(AVERAGEIFS(Табл_оцінок[Оцінка],Табл_оцінок[Предмет],Обчислення!$C6,Табл_оцінок[Тип],Обчислення!AI$5)*Настройки!K9,\"\")","v":""},{"$f":"SUM(AC6:AI6)","v":0.08333333333333334},{"$f":"SUMIFS(Настройки!E9:K9,Обчислення!AC6:AI6,\">0\")","v":0.1},{"$f":"IFERROR(AJ6/AK6,\"\")","v":{"v":0.8333333333333334,"d":"83%"}},{"$f":"IFERROR(HLOOKUP(AL6,Відображення_середнього_бала_оцінки_знань,3),\"\")","v":3},{"$f":"IFERROR(HLOOKUP(AL6,Відображення_середнього_бала_оцінки_знань,2),\"\")","v":"B"}]
[null,null,{"$f":"IF(Настройки!C10=\"\",\"\",Настройки!C10)","v":"Теоретична фізика"},{"v":0.95,"d":"95%"},"","","","","","","","","","","","","","","","","","","","","","","","",{"$f":"IFERROR(AVERAGEIFS(Табл_оцінок[Оцінка],Табл_оцінок[Предмет],Обчислення!$C7,Табл_оцінок[Тип],Обчислення!AC$5)*Настройки!E10,\"\")","v":0.1425},{"$f":"IFERROR(AVERAGEIFS(Табл_оцінок[Оцінка],Табл_оцінок[Предмет],Обчислення!$C7,Табл_оцінок[Тип],Обчислення!AD$5)*Настройки!F10,\"\")","v":""},{"$f":"IFERROR(AVERAGEIFS(Табл_оцінок[Оцінка],Табл_оцінок[Предмет],Обчислення!$C7,Табл_оцінок[Тип],Обчислення!AE$5)*Настройки!G10,\"\")","v":""},{"$f":"IFERROR(AVERAGEIFS(Табл_оцінок[Оцінка],Табл_оцінок[Предмет],Обчислення!$C7,Табл_оцінок[Тип],Обчислення!AF$5)*Настройки!H10,\"\")","v":""},{"$f":"IFERROR(AVERAGEIFS(Табл_оцінок[Оцінка],Табл_оцінок[Предмет],Обчислення!$C7,Табл_оцінок[Тип],Обчислення!AG$5)*Настройки!I10,\"\")","v":""},{"$f":"IFERROR(AVERAGEIFS(Табл_оцінок[Оцінка],Табл_оцінок[Предмет],Обчислення!$C7,Табл_оцінок[Тип],Обчислення!AH$5)*Настройки!J10,\"\")","v":""},{"$f":"IFERROR(AVERAGEIFS(Табл_оцінок[Оцінка],Табл_оцінок[Предмет],Обчислення!$C7,Табл_оцінок[Тип],Обчислення!AI$5)*Настройки!K10,\"\")","v":""},{"$f":"SUM(AC7:AI7)","v":0.1425},{"$f":"SUMIFS(Настройки!E10:K10,Обчислення!AC7:AI7,\">0\")","v":0.15},{"$f":"IFERROR(AJ7/AK7,\"\")","v":{"v":0.95,"d":"95%"}},4,"A"]
[null,null,{"$f":"IF(Настройки!C11=\"\",\"\",Настройки!C11)","v":"Математика 1"},{"v":0.8,"d":"80%"},{"v":0.8,"d":"80%"},"","","","","","","","","","","","","","","","","","","","","","","",{"$f":"IFERROR(AVERAGEIFS(Табл_оцінок[Оцінка],Табл_оцінок[Предмет],Обчислення!$C8,Табл_оцінок[Тип],Обчислення!AC$5)*Настройки!E11,\"\")","v":0.08000000000000002},{"$f":"IFERROR(AVERAGEIFS(Табл_оцінок[Оцінка],Табл_оцінок[Предмет],Обчислення!$C8,Табл_оцінок[Тип],Обчислення!AD$5)*Настройки!F11,\"\")","v":""},{"$f":"IFERROR(AVERAGEIFS(Табл_оцінок[Оцінка],Табл_оцінок[Предмет],Обчислення!$C8,Табл_оцінок[Тип],Обчислення!AE$5)*Настройки!G11,\"\")","v":""},{"$f":"IFERROR(AVERAGEIFS(Табл_оцінок[Оцінка],Табл_оцінок[Предмет],Обчислення!$C8,Табл_оцінок[Тип],Обчислення!AF$5)*Настройки!H11,\"\")","v":""},{"$f":"IFERROR(AVERAGEIFS(Табл_оцінок[Оцінка],Табл_оцінок[Предмет],Обчислення!$C8,Табл_оцінок[Тип],Обчислення!AG$5)*Настройки!I11,\"\")","v":""},{"$f":"IFERROR(AVERAGEIFS(Табл_оцінок[Оцінка],Табл_оцінок[Предмет],Обчислення!$C8,Табл_оцінок[Тип],Обчислення!AH$5)*Настройки!J11,\"\")","v":""},{"$f":"IFERROR(AVERAGEIFS(Табл_оцінок[Оцінка],Табл_оцінок[Предмет],Обчислення!$C8,Табл_оцінок[Тип],Обчислення!AI$5)*Настройки!K11,\"\")","v":""},0.08000000000000002,{"$f":"SUMIFS(Настройки!E11:K11,Обчислення!AC8:AI8,\">0\")","v":0.1},{"v":0.8000000000000002,"d":"80%"},2.67,"B-"]
[null,null,{"$f":"IF(Настройки!C12=\"\",\"\",Настройки!C12)","v":"Математика 2"},{"v":0.85,"d":"85%"},{"v":0.95,"d":"95%"},"","","","","","","","","","","","","","","","","","","","","","","",{"$f":"IFERROR(AVERAGEIFS(Табл_оцінок[Оцінка],Табл_оцінок[Предмет],Обчислення!$C9,Табл_оцінок[Тип],Обчислення!AC$5)*Настройки!E12,\"\")","v":0.1275},{"$f":"IFERROR(AVERAGEIFS(Табл_оцінок[Оцінка],Табл_оцінок[Предмет],Обчислення!$C9,Табл_оцінок[Тип],Обчислення!AD$5)*Настройки!F12,\"\")","v":""},{"$f":"IFERROR(AVERAGEIFS(Табл_оцінок[Оцінка],Табл_оцінок[Предмет],Обчислення!$C9,Табл_оцінок[Тип],Обчислення!AE$5)*Настройки!G12,\"\")","v":0.095},{"$f":"IFERROR(AVERAGEIFS(Табл_оцінок[Оцінка],Табл_оцінок[Предмет],Обчислення!$C9,Табл_оцінок[Тип],Обчислення!AF$5)*Настройки!H12,\"\")","v":""},{"$f":"IFERROR(AVERAGEIFS(Табл_оцінок[Оцінка],Табл_оцінок[Предмет],Обчислення!$C9,Табл_оцінок[Тип],Обчислення!AG$5)*Настройки!I12,\"\")","v":""},{"$f":"IFERROR(AVERAGEIFS(Табл_оцінок[Оцінка],Табл_оцінок[Предмет],Обчислення!$C9,Табл_оцінок[Тип],Обчислення!AH$5)*Настройки!J12,\"\")","v":""},{"$f":"IFERROR(AVERAGEIFS(Табл_оцінок[Оцінка],Табл_оцінок[Предмет],Обчислення!$C9,Табл_оцінок[Тип],Обчислення!AI$5)*Настройки!K12,\"\")","v":""},0.2225,{"$f":"SUMIFS(Настройки!E12:K12,Обчислення!AC9:AI9,\">0\")","v":0.25},{"v":0.89,"d":"89%"},3.33,"B+"]
[null,null,{"$f":"IF(Настройки!C13=\"\",\"\",Настройки!C13)","v":"Поглиблене програмування на Java"},{"v":0.75,"d":"75%"},"","","","","","","","","","","","","","","","","","","","","","","","",{"$f":"IFERROR(AVERAGEIFS(Табл_оцінок[Оцінка],Табл_оцінок[Предмет],Обчислення!$C10,Табл_оцінок[Тип],Обчислення!AC$5)*Настройки!E13,\"\")","v":""},{"$f":"IFERROR(AVERAGEIFS(Табл_оцінок[Оцінка],Табл_оцінок[Предмет],Обчислення!$C10,Табл_оцінок[Тип],Обчислення!AD$5)*Настройки!F13,\"\")","v":""},{"$f":"IFERROR(AVERAGEIFS(Табл_оцінок[Оцінка],Табл_оцінок[Предмет],Обчислення!$C10,Табл_оцінок[Тип],Обчислення!AE$5)*Настройки!G13,\"\")","v":""},{"$f":"IFERROR(AVERAGEIFS(Табл_оцінок[Оцінка],Табл_оцінок[Предмет],Обчислення!$C10,Табл_оцінок[Тип],Обчислення!AF$5)*Настройки!H13,\"\")","v":""},{"$f":"IFERROR(AVERAGEIFS(Табл_оцінок[Оцінка],Табл_оцінок[Предмет],Обчислення!$C10,Табл_оцінок[Тип],Обчислення!AG$5)*Настройки!I13,\"\")","v":0.15000000000000002},{"$f":"IFERROR(AVERAGEIFS(Табл_оцінок[Оцінка],Табл_оцінок[Предмет],Обчислення!$C10,Табл_оцінок[Тип],Обчислення!AH$5)*Настройки!J13,\"\")","v":""},{"$f":"IFERROR(AVERAGEIFS(Табл_оцінок[Оцінка],Табл_оцінок[Предмет],Обчислення!$C10,Табл_оцінок[Тип],Обчислення!AI$5)*Настройки!K13,\"\")","v":""},0.15000000000000002,{"$f":"SUMIFS(Настройки!E13:K13,Обчислення!AC10:AI10,\">0\")","v":0.2},{"v":0.7500000000000001,"d":"75%"},2,"C"]
[null,null,{"$f":"IF(Настройки!C14=\"\",\"\",Настройки!C14)","v":"Іспанська мова"},{"v":0.5,"d":"50%"},"","","","","","","","","","","","","","","","","","","","","","","","",{"$f":"IFERROR(AVERAGEIFS(Табл_оцінок[Оцінка],Табл_оцінок[Предмет],Обчислення!$C11,Табл_оцінок[Тип],Обчислення!AC$5)*Настройки!E14,\"\")","v":0.05},{"$f":"IFERROR(AVERAGEIFS(Табл_оцінок[Оцінка],Табл_оцінок[Предмет],Обчислення!$C11,Табл_оцінок[Тип],Обчислення!AD$5)*Настройки!F14,\"\")","v":""},{"$f":"IFERROR(AVERAGEIFS(Табл_оцінок[Оцінка],Табл_оцінок[Предмет],Обчислення!$C11,Табл_оцінок[Тип],Обчислення!AE$5)*Настройки!G14,\"\")","v":""},{"$f":"IFERROR(AVERAGEIFS(Табл_оцінок[Оцінка],Табл_оцінок[Предмет],Обчислення!$C11,Табл_оцінок[Тип],Обчислення!AF$5)*Настройки!H14,\"\")","v":""},{"$f":"IFERROR(AVERAGEIFS(Табл_оцінок[Оцінка],Табл_оцінок[Предмет],Обчислення!$C11,Табл_оцінок[Тип],Обчислення!AG$5)*Настройки!I14,\"\")","v":""},{"$f":"IFERROR(AVERAGEIFS(Табл_оцінок[Оцінка],Табл_оцінок[Предмет],Обчислення!$C11,Табл_оцінок[Тип],Обчислення!AH$5)*Настройки!J14,\"\")","v":""},{"$f":"IFERROR(AVERAGEIFS(Табл_оцінок[Оцінка],Табл_оцінок[Предмет],Обчислення!$C11,Табл_оцінок[Тип],Обчислення!AI$5)*Настройки!K14,\"\")","v":""},0.05,{"$f":"SUMIFS(Настройки!E14:K14,Обчислення!AC11:AI11,\">0\")","v":0.1},{"v":0.5,"d":"50%"},0,"F"]
[null,null,{"$f":"IF(Настройки!C15=\"\",\"\",Настройки!C15)","v":"Твір"},{"v":0.95,"d":"95%"},"","","","","","","","","","","","","","","","","","","","","","","","",{"$f":"IFERROR(AVERAGEIFS(Табл_оцінок[Оцінка],Табл_оцінок[Предмет],Обчислення!$C12,Табл_оцінок[Тип],Обчислення!AC$5)*Настройки!E15,\"\")","v":""},{"$f":"IFERROR(AVERAGEIFS(Табл_оцінок[Оцінка],Табл_оцінок[Предмет],Обчислення!$C12,Табл_оцінок[Тип],Обчислення!AD$5)*Настройки!F15,\"\")","v":0.1425},{"$f":"IFERROR(AVERAGEIFS(Табл_оцінок[Оцінка],Табл_оцінок[Предмет],Обчислення!$C12,Табл_оцінок[Тип],Обчислення!AE$5)*Настройки!G15,\"\")","v":""},{"$f":"IFERROR(AVERAGEIFS(Табл_оцінок[Оцінка],Табл_оцінок[Предмет],Обчислення!$C12,Табл_оцінок[Тип],Обчислення!AF$5)*Настройки!H15,\"\")","v":""},{"$f":"IFERROR(AVERAGEIFS(Табл_оцінок[Оцінка],Табл_оцінок[Предмет],Обчислення!$C12,Табл_оцінок[Тип],Обчислення!AG$5)*Настройки!I15,\"\")","v":""},{"$f":"IFERROR(AVERAGEIFS(Табл_оцінок[Оцінка],Табл_оцінок[Предмет],Обчислення!$C12,Табл_оцінок[Тип],Обчислення!AH$5)*Настройки!J15,\"\")","v":""},{"$f":"IFERROR(AVERAGEIFS(Табл_оцінок[Оцінка],Табл_оцінок[Предмет],Обчислення!$C12,Табл_оцінок[Тип],Обчислення!AI$5)*Настройки!K15,\"\")","v":""},0.1425,{"$f":"SUMIFS(Настройки!E15:K15,Обчислення!AC12:AI12,\">0\")","v":0.15},{"v":0.95,"d":"95%"},4,"A"]
[null,null,{"$f":"IF(Настройки!C16=\"\",\"\",Настройки!C16)","v":""},"","","","","","","","","","","","","","","","","","","","","","","","","",{"$f":"IFERROR(AVERAGEIFS(Табл_оцінок[Оцінка],Табл_оцінок[Предмет],Обчислення!$C13,Табл_оцінок[Тип],Обчислення!AC$5)*Настройки!E16,\"\")","v":""},{"$f":"IFERROR(AVERAGEIFS(Табл_оцінок[Оцінка],Табл_оцінок[Предмет],Обчислення!$C13,Табл_оцінок[Тип],Обчислення!AD$5)*Настройки!F16,\"\")","v":""},{"$f":"IFERROR(AVERAGEIFS(Табл_оцінок[Оцінка],Табл_оцінок[Предмет],Обчислення!$C13,Табл_оцінок[Тип],Обчислення!AE$5)*Настройки!G16,\"\")","v":""},{"$f":"IFERROR(AVERAGEIFS(Табл_оцінок[Оцінка],Табл_оцінок[Предмет],Обчислення!$C13,Табл_оцінок[Тип],Обчислення!AF$5)*Настройки!H16,\"\")","v":""},{"$f":"IFERROR(AVERAGEIFS(Табл_оцінок[Оцінка],Табл_оцінок[Предмет],Обчислення!$C13,Табл_оцінок[Тип],Обчислення!AG$5)*Настройки!I16,\"\")","v":""},{"$f":"IFERROR(AVERAGEIFS(Табл_оцінок[Оцінка],Табл_оцінок[Предмет],Обчислення!$C13,Табл_оцінок[Тип],Обчислення!AH$5)*Настройки!J16,\"\")","v":""},{"$f":"IFERROR(AVERAGEIFS(Табл_оцінок[Оцінка],Табл_оцінок[Предмет],Обчислення!$C13,Табл_оцінок[Тип],Обчислення!AI$5)*Настройки!K16,\"\")","v":""},{"$f":"SUM(AC13:AI13)","v":0},{"$f":"SUMIFS(Настройки!E16:K16,Обчислення!AC13:AI13,\">0\")","v":0},{"$f":"IFERROR(AJ13/AK13,\"\")","v":""},"",""]
[null,null,{"$f":"IF(Настройки!C17=\"\",\"\",Настройки!C17)","v":""},"","","","","","","","","","","","","","","","","","","","","","","","","",{"$f":"IFERROR(AVERAGEIFS(Табл_оцінок[Оцінка],Табл_оцінок[Предмет],Обчислення!$C14,Табл_оцінок[Тип],Обчислення!AC$5)*Настройки!E17,\"\")","v":""},{"$f":"IFERROR(AVERAGEIFS(Табл_оцінок[Оцінка],Табл_оцінок[Предмет],Обчислення!$C14,Табл_оцінок[Тип],Обчислення!AD$5)*Настройки!F17,\"\")","v":""},{"$f":"IFERROR(AVERAGEIFS(Табл_оцінок[Оцінка],Табл_оцінок[Предмет],Обчислення!$C14,Табл_оцінок[Тип],Обчислення!AE$5)*Настройки!G17,\"\")","v":""},{"$f":"IFERROR(AVERAGEIFS(Табл_оцінок[Оцінка],Табл_оцінок[Предмет],Обчислення!$C14,Табл_оцінок[Тип],Обчислення!AF$5)*Настройки!H17,\"\")","v":""},{"$f":"IFERROR(AVERAGEIFS(Табл_оцінок[Оцінка],Табл_оцінок[Предмет],Обчислення!$C14,Табл_оцінок[Тип],Обчислення!AG$5)*Настройки!I17,\"\")","v":""},{"$f":"IFERROR(AVERAGEIFS(Табл_оцінок[Оцінка],Табл_оцінок[Предмет],Обчислення!$C14,Табл_оцінок[Тип],Обчислення!AH$5)*Настройки!J17,\"\")","v":""},{"$f":"IFERROR(AVERAGEIFS(Табл_оцінок[Оцінка],Табл_оцінок[Предмет],Обчислення!$C14,Табл_оцінок[Тип],Обчислення!AI$5)*Настройки!K17,\"\")","v":""},0,{"$f":"SUMIFS(Настройки!E17:K17,Обчислення!AC14:AI14,\">0\")","v":0},"","",""]
[null,null,{"$f":"IF(Настройки!C18=\"\",\"\",Настройки!C18)","v":""},"","","","","","","","","","","","","","","","","","","","","","","","","",{"$f":"IFERROR(AVERAGEIFS(Табл_оцінок[Оцінка],Табл_оцінок[Предмет],Обчислення!$C15,Табл_оцінок[Тип],Обчислення!AC$5)*Настройки!E18,\"\")","v":""},{"$f":"IFERROR(AVERAGEIFS(Табл_оцінок[Оцінка],Табл_оцінок[Предмет],Обчислення!$C15,Табл_оцінок[Тип],Обчислення!AD$5)*Настройки!F18,\"\")","v":""},{"$f":"IFERROR(AVERAGEIFS(Табл_оцінок[Оцінка],Табл_оцінок[Предмет],Обчислення!$C15,Табл_оцінок[Тип],Обчислення!AE$5)*Настройки!G18,\"\")","v":""},{"$f":"IFERROR(AVERAGEIFS(Табл_оцінок[Оцінка],Табл_оцінок[Предмет],Обчислення!$C15,Табл_оцінок[Тип],Обчислення!AF$5)*Настройки!H18,\"\")","v":""},{"$f":"IFERROR(AVERAGEIFS(Табл_оцінок[Оцінка],Табл_оцінок[Предмет],Обчислення!$C15,Табл_оцінок[Тип],Обчислення!AG$5)*Настройки!I18,\"\")","v":""},{"$f":"IFERROR(AVERAGEIFS(Табл_оцінок[Оцінка],Табл_оцінок[Предмет],Обчислення!$C15,Табл_оцінок[Тип],Обчислення!AH$5)*Настройки!J18,\"\")","v":""},{"$f":"IFERROR(AVERAGEIFS(Табл_оцінок[Оцінка],Табл_оцінок[Предмет],Обчислення!$C15,Табл_оцінок[Тип],Обчислення!AI$5)*Настройки!K18,\"\")","v":""},0,{"$f":"SUMIFS(Настройки!E18:K18,Обчислення!AC15:AI15,\">0\")","v":0},"","",""]
[null,null,{"$f":"IF(Настройки!C19=\"\",\"\",Настройки!C19)","v":""},"","","","","","","","","","","","","","","","","","","","","","","","","",{"$f":"IFERROR(AVERAGEIFS(Табл_оцінок[Оцінка],Табл_оцінок[Предмет],Обчислення!$C16,Табл_оцінок[Тип],Обчислення!AC$5)*Настройки!E19,\"\")","v":""},{"$f":"IFERROR(AVERAGEIFS(Табл_оцінок[Оцінка],Табл_оцінок[Предмет],Обчислення!$C16,Табл_оцінок[Тип],Обчислення!AD$5)*Настройки!F19,\"\")","v":""},{"$f":"IFERROR(AVERAGEIFS(Табл_оцінок[Оцінка],Табл_оцінок[Предмет],Обчислення!$C16,Табл_оцінок[Тип],Обчислення!AE$5)*Настройки!G19,\"\")","v":""},{"$f":"IFERROR(AVERAGEIFS(Табл_оцінок[Оцінка],Табл_оцінок[Предмет],Обчислення!$C16,Табл_оцінок[Тип],Обчислення!AF$5)*Настройки!H19,\"\")","v":""},{"$f":"IFERROR(AVERAGEIFS(Табл_оцінок[Оцінка],Табл_оцінок[Предмет],Обчислення!$C16,Табл_оцінок[Тип],Обчислення!AG$5)*Настройки!I19,\"\")","v":""},{"$f":"IFERROR(AVERAGEIFS(Табл_оцінок[Оцінка],Табл_оцінок[Предмет],Обчислення!$C16,Табл_оцінок[Тип],Обчислення!AH$5)*Настройки!J19,\"\")","v":""},{"$f":"IFERROR(AVERAGEIFS(Табл_оцінок[Оцінка],Табл_оцінок[Предмет],Обчислення!$C16,Табл_оцінок[Тип],Обчислення!AI$5)*Настройки!K19,\"\")","v":""},0,{"$f":"SUMIFS(Настройки!E19:K19,Обчислення!AC16:AI16,\">0\")","v":0},"","",""]
[null,null,{"$f":"IF(Настройки!C20=\"\",\"\",Настройки!C20)","v":""},"","","","","","","","","","","","","","","","","","","","","","","","","",{"$f":"IFERROR(AVERAGEIFS(Табл_оцінок[Оцінка],Табл_оцінок[Предмет],Обчислення!$C17,Табл_оцінок[Тип],Обчислення!AC$5)*Настройки!E20,\"\")","v":""},{"$f":"IFERROR(AVERAGEIFS(Табл_оцінок[Оцінка],Табл_оцінок[Предмет],Обчислення!$C17,Табл_оцінок[Тип],Обчислення!AD$5)*Настройки!F20,\"\")","v":""},{"$f":"IFERROR(AVERAGEIFS(Табл_оцінок[Оцінка],Табл_оцінок[Предмет],Обчислення!$C17,Табл_оцінок[Тип],Обчислення!AE$5)*Настройки!G20,\"\")","v":""},{"$f":"IFERROR(AVERAGEIFS(Табл_оцінок[Оцінка],Табл_оцінок[Предмет],Обчислення!$C17,Табл_оцінок[Тип],Обчислення!AF$5)*Настройки!H20,\"\")","v":""},{"$f":"IFERROR(AVERAGEIFS(Табл_оцінок[Оцінка],Табл_оцінок[Предмет],Обчислення!$C17,Табл_оцінок[Тип],Обчислення!AG$5)*Настройки!I20,\"\")","v":""},{"$f":"IFERROR(AVERAGEIFS(Табл_оцінок[Оцінка],Табл_оцінок[Предмет],Обчислення!$C17,Табл_оцінок[Тип],Обчислення!AH$5)*Настройки!J20,\"\")","v":""},{"$f":"IFERROR(AVERAGEIFS(Табл_оцінок[Оцінка],Табл_оцінок[Предмет],Обчислення!$C17,Табл_оцінок[Тип],Обчислення!AI$5)*Настройки!K20,\"\")","v":""},0,{"$f":"SUMIFS(Настройки!E20:K20,Обчислення!AC17:AI17,\">0\")","v":0},"","",""]
[null,null,{"$f":"IF(Настройки!C21=\"\",\"\",Настройки!C21)","v":""},"","","","","","","","","","","","","","","","","","","","","","","","","",{"$f":"IFERROR(AVERAGEIFS(Табл_оцінок[Оцінка],Табл_оцінок[Предмет],Обчислення!$C18,Табл_оцінок[Тип],Обчислення!AC$5)*Настройки!E21,\"\")","v":""},{"$f":"IFERROR(AVERAGEIFS(Табл_оцінок[Оцінка],Табл_оцінок[Предмет],Обчислення!$C18,Табл_оцінок[Тип],Обчислення!AD$5)*Настройки!F21,\"\")","v":""},{"$f":"IFERROR(AVERAGEIFS(Табл_оцінок[Оцінка],Табл_оцінок[Предмет],Обчислення!$C18,Табл_оцінок[Тип],Обчислення!AE$5)*Настройки!G21,\"\")","v":""},{"$f":"IFERROR(AVERAGEIFS(Табл_оцінок[Оцінка],Табл_оцінок[Предмет],Обчислення!$C18,Табл_оцінок[Тип],Обчислення!AF$5)*Настройки!H21,\"\")","v":""},{"$f":"IFERROR(AVERAGEIFS(Табл_оцінок[Оцінка],Табл_оцінок[Предмет],Обчислення!$C18,Табл_оцінок[Тип],Обчислення!AG$5)*Настройки!I21,\"\")","v":""},{"$f":"IFERROR(AVERAGEIFS(Табл_оцінок[Оцінка],Табл_оцінок[Предмет],Обчислення!$C18,Табл_оцінок[Тип],Обчислення!AH$5)*Настройки!J21,\"\")","v":""},{"$f":"IFERROR(AVERAGEIFS(Табл_оцінок[Оцінка],Табл_оцінок[Предмет],Обчислення!$C18,Табл_оцінок[Тип],Обчислення!AI$5)*Настройки!K21,\"\")","v":""},0,{"$f":"SUMIFS(Настройки!E21:K21,Обчислення!AC18:AI18,\">0\")","v":0},"","",""]
[null,null,{"$f":"IF(Настройки!C22=\"\",\"\",Настройки!C22)","v":""},"","","","","","","","","","","","","","","","","","","","","","","","","",{"$f":"IFERROR(AVERAGEIFS(Табл_оцінок[Оцінка],Табл_оцінок[Предмет],Обчислення!$C19,Табл_оцінок[Тип],Обчислення!AC$5)*Настройки!E22,\"\")","v":""},{"$f":"IFERROR(AVERAGEIFS(Табл_оцінок[Оцінка],Табл_оцінок[Предмет],Обчислення!$C19,Табл_оцінок[Тип],Обчислення!AD$5)*Настройки!F22,\"\")","v":""},{"$f":"IFERROR(AVERAGEIFS(Табл_оцінок[Оцінка],Табл_оцінок[Предмет],Обчислення!$C19,Табл_оцінок[Тип],Обчислення!AE$5)*Настройки!G22,\"\")","v":""},{"$f":"IFERROR(AVERAGEIFS(Табл_оцінок[Оцінка],Табл_оцінок[Предмет],Обчислення!$C19,Табл_оцінок[Тип],Обчислення!AF$5)*Настройки!H22,\"\")","v":""},{"$f":"IFERROR(AVERAGEIFS(Табл_оцінок[Оцінка],Табл_оцінок[Предмет],Обчислення!$C19,Табл_оцінок[Тип],Обчислення!AG$5)*Настройки!I22,\"\")","v":""},{"$f":"IFERROR(AVERAGEIFS(Табл_оцінок[Оцінка],Табл_оцінок[Предмет],Обчислення!$C19,Табл_оцінок[Тип],Обчислення!AH$5)*Настройки!J22,\"\")","v":""},{"$f":"IFERROR(AVERAGEIFS(Табл_оцінок[Оцінка],Табл_оцінок[Предмет],Обчислення!$C19,Табл_оцінок[Тип],Обчислення!AI$5)*Настройки!K22,\"\")","v":""},0,{"$f":"SUMIFS(Настройки!E22:K22,Обчислення!AC19:AI19,\">0\")","v":0},"","",""]
[null,null,{"$f":"IF(Настройки!C23=\"\",\"\",Настройки!C23)","v":""},"","","","","","","","","","","","","","","","","","","","","","","","","",{"$f":"IFERROR(AVERAGEIFS(Табл_оцінок[Оцінка],Табл_оцінок[Предмет],Обчислення!$C20,Табл_оцінок[Тип],Обчислення!AC$5)*Настройки!E23,\"\")","v":""},{"$f":"IFERROR(AVERAGEIFS(Табл_оцінок[Оцінка],Табл_оцінок[Предмет],Обчислення!$C20,Табл_оцінок[Тип],Обчислення!AD$5)*Настройки!F23,\"\")","v":""},{"$f":"IFERROR(AVERAGEIFS(Табл_оцінок[Оцінка],Табл_оцінок[Предмет],Обчислення!$C20,Табл_оцінок[Тип],Обчислення!AE$5)*Настройки!G23,\"\")","v":""},{"$f":"IFERROR(AVERAGEIFS(Табл_оцінок[Оцінка],Табл_оцінок[Предмет],Обчислення!$C20,Табл_оцінок[Тип],Обчислення!AF$5)*Настройки!H23,\"\")","v":""},{"$f":"IFERROR(AVERAGEIFS(Табл_оцінок[Оцінка],Табл_оцінок[Предмет],Обчислення!$C20,Табл_оцінок[Тип],Обчислення!AG$5)*Настройки!I23,\"\")","v":""},{"$f":"IFERROR(AVERAGEIFS(Табл_оцінок[Оцінка],Табл_оцінок[Предмет],Обчислення!$C20,Табл_оцінок[Тип],Обчислення!AH$5)*Настройки!J23,\"\")","v":""},{"$f":"IFERROR(AVERAGEIFS(Табл_оцінок[Оцінка],Табл_оцінок[Предмет],Обчислення!$C20,Табл_оцінок[Тип],Обчислення!AI$5)*Настройки!K23,\"\")","v":""},0,{"$f":"SUMIFS(Настройки!E23:K23,Обчислення!AC20:AI20,\">0\")","v":0},"","",""]
[null,null,{"$f":"IF(Настройки!C24=\"\",\"\",Настройки!C24)","v":""},"","","","","","","","","","","","","","","","","","","","","","","","","",{"$f":"IFERROR(AVERAGEIFS(Табл_оцінок[Оцінка],Табл_оцінок[Предмет],Обчислення!$C21,Табл_оцінок[Тип],Обчислення!AC$5)*Настройки!E24,\"\")","v":""},{"$f":"IFERROR(AVERAGEIFS(Табл_оцінок[Оцінка],Табл_оцінок[Предмет],Обчислення!$C21,Табл_оцінок[Тип],Обчислення!AD$5)*Настройки!F24,\"\")","v":""},{"$f":"IFERROR(AVERAGEIFS(Табл_оцінок[Оцінка],Табл_оцінок[Предмет],Обчислення!$C21,Табл_оцінок[Тип],Обчислення!AE$5)*Настройки!G24,\"\")","v":""},{"$f":"IFERROR(AVERAGEIFS(Табл_оцінок[Оцінка],Табл_оцінок[Предмет],Обчислення!$C21,Табл_оцінок[Тип],Обчислення!AF$5)*Настройки!H24,\"\")","v":""},{"$f":"IFERROR(AVERAGEIFS(Табл_оцінок[Оцінка],Табл_оцінок[Предмет],Обчислення!$C21,Табл_оцінок[Тип],Обчислення!AG$5)*Настройки!I24,\"\")","v":""},{"$f":"IFERROR(AVERAGEIFS(Табл_оцінок[Оцінка],Табл_оцінок[Предмет],Обчислення!$C21,Табл_оцінок[Тип],Обчислення!AH$5)*Настройки!J24,\"\")","v":""},{"$f":"IFERROR(AVERAGEIFS(Табл_оцінок[Оцінка],Табл_оцінок[Предмет],Обчислення!$C21,Табл_оцінок[Тип],Обчислення!AI$5)*Настройки!K24,\"\")","v":""},0,{"$f":"SUMIFS(Настройки!E24:K24,Обчислення!AC21:AI21,\">0\")","v":0},"","",""]
[null,null,{"$f":"IF(Настройки!C25=\"\",\"\",Настройки!C25)","v":""},"","","","","","","","","","","","","","","","","","","","","","","","","",{"$f":"IFERROR(AVERAGEIFS(Табл_оцінок[Оцінка],Табл_оцінок[Предмет],Обчислення!$C22,Табл_оцінок[Тип],Обчислення!AC$5)*Настройки!E25,\"\")","v":""},{"$f":"IFERROR(AVERAGEIFS(Табл_оцінок[Оцінка],Табл_оцінок[Предмет],Обчислення!$C22,Табл_оцінок[Тип],Обчислення!AD$5)*Настройки!F25,\"\")","v":""},{"$f":"IFERROR(AVERAGEIFS(Табл_оцінок[Оцінка],Табл_оцінок[Предмет],Обчислення!$C22,Табл_оцінок[Тип],Обчислення!AE$5)*Настройки!G25,\"\")","v":""},{"$f":"IFERROR(AVERAGEIFS(Табл_оцінок[Оцінка],Табл_оцінок[Предмет],Обчислення!$C22,Табл_оцінок[Тип],Обчислення!AF$5)*Настройки!H25,\"\")","v":""},{"$f":"IFERROR(AVERAGEIFS(Табл_оцінок[Оцінка],Табл_оцінок[Предмет],Обчислення!$C22,Табл_оцінок[Тип],Обчислення!AG$5)*Настройки!I25,\"\")","v":""},{"$f":"IFERROR(AVERAGEIFS(Табл_оцінок[Оцінка],Табл_оцінок[Предмет],Обчислення!$C22,Табл_оцінок[Тип],Обчислення!AH$5)*Настройки!J25,\"\")","v":""},{"$f":"IFERROR(AVERAGEIFS(Табл_оцінок[Оцінка],Табл_оцінок[Предмет],Обчислення!$C22,Табл_оцінок[Тип],Обчислення!AI$5)*Настройки!K25,\"\")","v":""},0,{"$f":"SUMIFS(Настройки!E25:K25,Обчислення!AC22:AI22,\">0\")","v":0},"","",""]
[null,null,{"$f":"IF(Настройки!C26=\"\",\"\",Настройки!C26)","v":""},"","","","","","","","","","","","","","","","","","","","","","","","","",{"$f":"IFERROR(AVERAGEIFS(Табл_оцінок[Оцінка],Табл_оцінок[Предмет],Обчислення!$C23,Табл_оцінок[Тип],Обчислення!AC$5)*Настройки!E26,\"\")","v":""},{"$f":"IFERROR(AVERAGEIFS(Табл_оцінок[Оцінка],Табл_оцінок[Предмет],Обчислення!$C23,Табл_оцінок[Тип],Обчислення!AD$5)*Настройки!F26,\"\")","v":""},{"$f":"IFERROR(AVERAGEIFS(Табл_оцінок[Оцінка],Табл_оцінок[Предмет],Обчислення!$C23,Табл_оцінок[Тип],Обчислення!AE$5)*Настройки!G26,\"\")","v":""},{"$f":"IFERROR(AVERAGEIFS(Табл_оцінок[Оцінка],Табл_оцінок[Предмет],Обчислення!$C23,Табл_оцінок[Тип],Обчислення!AF$5)*Настройки!H26,\"\")","v":""},{"$f":"IFERROR(AVERAGEIFS(Табл_оцінок[Оцінка],Табл_оцінок[Предмет],Обчислення!$C23,Табл_оцінок[Тип],Обчислення!AG$5)*Настройки!I26,\"\")","v":""},{"$f":"IFERROR(AVERAGEIFS(Табл_оцінок[Оцінка],Табл_оцінок[Предмет],Обчислення!$C23,Табл_оцінок[Тип],Обчислення!AH$5)*Настройки!J26,\"\")","v":""},{"$f":"IFERROR(AVERAGEIFS(Табл_оцінок[Оцінка],Табл_оцінок[Предмет],Обчислення!$C23,Табл_оцінок[Тип],Обчислення!AI$5)*Настройки!K26,\"\")","v":""},0,{"$f":"SUMIFS(Настройки!E26:K26,Обчислення!AC23:AI23,\">0\")","v":0},"","",""]
[null,null,{"$f":"IF(Настройки!C27=\"\",\"\",Настройки!C27)","v":""},"","","","","","","","","","","","","","","","","","","","","","","","","",{"$f":"IFERROR(AVERAGEIFS(Табл_оцінок[Оцінка],Табл_оцінок[Предмет],Обчислення!$C24,Табл_оцінок[Тип],Обчислення!AC$5)*Настройки!E27,\"\")","v":""},{"$f":"IFERROR(AVERAGEIFS(Табл_оцінок[Оцінка],Табл_оцінок[Предмет],Обчислення!$C24,Табл_оцінок[Тип],Обчислення!AD$5)*Настройки!F27,\"\")","v":""},{"$f":"IFERROR(AVERAGEIFS(Табл_оцінок[Оцінка],Табл_оцінок[Предмет],Обчислення!$C24,Табл_оцінок[Тип],Обчислення!AE$5)*Настройки!G27,\"\")","v":""},{"$f":"IFERROR(AVERAGEIFS(Табл_оцінок[Оцінка],Табл_оцінок[Предмет],Обчислення!$C24,Табл_оцінок[Тип],Обчислення!AF$5)*Настройки!H27,\"\")","v":""},{"$f":"IFERROR(AVERAGEIFS(Табл_оцінок[Оцінка],Табл_оцінок[Предмет],Обчислення!$C24,Табл_оцінок[Тип],Обчислення!AG$5)*Настройки!I27,\"\")","v":""},{"$f":"IFERROR(AVERAGEIFS(Табл_оцінок[Оцінка],Табл_оцінок[Предмет],Обчислення!$C24,Табл_оцінок[Тип],Обчислення!AH$5)*Настройки!J27,\"\")","v":""},{"$f":"IFERROR(AVERAGEIFS(Табл_оцінок[Оцінка],Табл_оцінок[Предмет],Обчислення!$C24,Табл_оцінок[Тип],Обчислення!AI$5)*Настройки!K27,\"\")","v":""},0,{"$f":"SUMIFS(Настройки!E27:K27,Обчислення!AC24:AI24,\">0\")","v":0},"","",""]
[null,null,{"$f":"IF(Настройки!C28=\"\",\"\",Настройки!C28)","v":""},"","","","","","","","","","","","","","","","","","","","","","","","","",{"$f":"IFERROR(AVERAGEIFS(Табл_оцінок[Оцінка],Табл_оцінок[Предмет],Обчислення!$C25,Табл_оцінок[Тип],Обчислення!AC$5)*Настройки!E28,\"\")","v":""},{"$f":"IFERROR(AVERAGEIFS(Табл_оцінок[Оцінка],Табл_оцінок[Предмет],Обчислення!$C25,Табл_оцінок[Тип],Обчислення!AD$5)*Настройки!F28,\"\")","v":""},{"$f":"IFERROR(AVERAGEIFS(Табл_оцінок[Оцінка],Табл_оцінок[Предмет],Обчислення!$C25,Табл_оцінок[Тип],Обчислення!AE$5)*Настройки!G28,\"\")","v":""},{"$f":"IFERROR(AVERAGEIFS(Табл_оцінок[Оцінка],Табл_оцінок[Предмет],Обчислення!$C25,Табл_оцінок[Тип],Обчислення!AF$5)*Настройки!H28,\"\")","v":""},{"$f":"IFERROR(AVERAGEIFS(Табл_оцінок[Оцінка],Табл_оцінок[Предмет],Обчислення!$C25,Табл_оцінок[Тип],Обчислення!AG$5)*Настройки!I28,\"\")","v":""},{"$f":"IFERROR(AVERAGEIFS(Табл_оцінок[Оцінка],Табл_оцінок[Предмет],Обчислення!$C25,Табл_оцінок[Тип],Обчислення!AH$5)*Настройки!J28,\"\")","v":""},{"$f":"IFERROR(AVERAGEIFS(Табл_оцінок[Оцінка],Табл_оцінок[Предмет],Обчислення!$C25,Табл_оцінок[Тип],Обчислення!AI$5)*Настройки!K28,\"\")","v":""},0,{"$f":"SUMIFS(Настройки!E28:K28,Обчислення!AC25:AI25,\">0\")","v":0},"","",""]
[null,null,{"$f":"IF(Настройки!C29=\"\",\"\",Настройки!C29)","v":""},"","","","","","","","","","","","","","","","","","","","","","","","","",{"$f":"IFERROR(AVERAGEIFS(Табл_оцінок[Оцінка],Табл_оцінок[Предмет],Обчислення!$C26,Табл_оцінок[Тип],Обчислення!AC$5)*Настройки!E29,\"\")","v":""},{"$f":"IFERROR(AVERAGEIFS(Табл_оцінок[Оцінка],Табл_оцінок[Предмет],Обчислення!$C26,Табл_оцінок[Тип],Обчислення!AD$5)*Настройки!F29,\"\")","v":""},{"$f":"IFERROR(AVERAGEIFS(Табл_оцінок[Оцінка],Табл_оцінок[Предмет],Обчислення!$C26,Табл_оцінок[Тип],Обчислення!AE$5)*Настройки!G29,\"\")","v":""},{"$f":"IFERROR(AVERAGEIFS(Табл_оцінок[Оцінка],Табл_оцінок[Предмет],Обчислення!$C26,Табл_оцінок[Тип],Обчислення!AF$5)*Настройки!H29,\"\")","v":""},{"$f":"IFERROR(AVERAGEIFS(Табл_оцінок[Оцінка],Табл_оцінок[Предмет],Обчислення!$C26,Табл_оцінок[Тип],Обчислення!AG$5)*Настройки!I29,\"\")","v":""},{"$f":"IFERROR(AVERAGEIFS(Табл_оцінок[Оцінка],Табл_оцінок[Предмет],Обчислення!$C26,Табл_оцінок[Тип],Обчислення!AH$5)*Настройки!J29,\"\")","v":""},{"$f":"IFERROR(AVERAGEIFS(Табл_оцінок[Оцінка],Табл_оцінок[Предмет],Обчислення!$C26,Табл_оцінок[Тип],Обчислення!AI$5)*Настройки!K29,\"\")","v":""},0,{"$f":"SUMIFS(Настройки!E29:K29,Обчислення!AC26:AI26,\">0\")","v":0},"","",""]
[null,null,{"$f":"IF(Настройки!C30=\"\",\"\",Настройки!C30)","v":""},"","","","","","","","","","","","","","","","","","","","","","","","","",{"$f":"IFERROR(AVERAGEIFS(Табл_оцінок[Оцінка],Табл_оцінок[Предмет],Обчислення!$C27,Табл_оцінок[Тип],Обчислення!AC$5)*Настройки!E30,\"\")","v":""},{"$f":"IFERROR(AVERAGEIFS(Табл_оцінок[Оцінка],Табл_оцінок[Предмет],Обчислення!$C27,Табл_оцінок[Тип],Обчислення!AD$5)*Настройки!F30,\"\")","v":""},{"$f":"IFERROR(AVERAGEIFS(Табл_оцінок[Оцінка],Табл_оцінок[Предмет],Обчислення!$C27,Табл_оцінок[Тип],Обчислення!AE$5)*Настройки!G30,\"\")","v":""},{"$f":"IFERROR(AVERAGEIFS(Табл_оцінок[Оцінка],Табл_оцінок[Предмет],Обчислення!$C27,Табл_оцінок[Тип],Обчислення!AF$5)*Настройки!H30,\"\")","v":""},{"$f":"IFERROR(AVERAGEIFS(Табл_оцінок[Оцінка],Табл_оцінок[Предмет],Обчислення!$C27,Табл_оцінок[Тип],Обчислення!AG$5)*Настройки!I30,\"\")","v":""},{"$f":"IFERROR(AVERAGEIFS(Табл_оцінок[Оцінка],Табл_оцінок[Предмет],Обчислення!$C27,Табл_оцінок[Тип],Обчислення!AH$5)*Настройки!J30,\"\")","v":""},{"$f":"IFERROR(AVERAGEIFS(Табл_оцінок[Оцінка],Табл_оцінок[Предмет],Обчислення!$C27,Табл_оцінок[Тип],Обчислення!AI$5)*Настройки!K30,\"\")","v":""},0,{"$f":"SUMIFS(Настройки!E30:K30,Обчислення!AC27:AI27,\">0\")","v":0},"","",""]
[null,null,{"$f":"IF(Настройки!C31=\"\",\"\",Настройки!C31)","v":""},"","","","","","","","","","","","","","","","","","","","","","","","","",{"$f":"IFERROR(AVERAGEIFS(Табл_оцінок[Оцінка],Табл_оцінок[Предмет],Обчислення!$C28,Табл_оцінок[Тип],Обчислення!AC$5)*Настройки!E31,\"\")","v":""},{"$f":"IFERROR(AVERAGEIFS(Табл_оцінок[Оцінка],Табл_оцінок[Предмет],Обчислення!$C28,Табл_оцінок[Тип],Обчислення!AD$5)*Настройки!F31,\"\")","v":""},{"$f":"IFERROR(AVERAGEIFS(Табл_оцінок[Оцінка],Табл_оцінок[Предмет],Обчислення!$C28,Табл_оцінок[Тип],Обчислення!AE$5)*Настройки!G31,\"\")","v":""},{"$f":"IFERROR(AVERAGEIFS(Табл_оцінок[Оцінка],Табл_оцінок[Предмет],Обчислення!$C28,Табл_оцінок[Тип],Обчислення!AF$5)*Настройки!H31,\"\")","v":""},{"$f":"IFERROR(AVERAGEIFS(Табл_оцінок[Оцінка],Табл_оцінок[Предмет],Обчислення!$C28,Табл_оцінок[Тип],Обчислення!AG$5)*Настройки!I31,\"\")","v":""},{"$f":"IFERROR(AVERAGEIFS(Табл_оцінок[Оцінка],Табл_оцінок[Предмет],Обчислення!$C28,Табл_оцінок[Тип],Обчислення!AH$5)*Настройки!J31,\"\")","v":""},{"$f":"IFERROR(AVERAGEIFS(Табл_оцінок[Оцінка],Табл_оцінок[Предмет],Обчислення!$C28,Табл_оцінок[Тип],Обчислення!AI$5)*Настройки!K31,\"\")","v":""},0,{"$f":"SUMIFS(Настройки!E31:K31,Обчислення!AC28:AI28,\">0\")","v":0},"","",""]
[null,null,{"$f":"IF(Настройки!C32=\"\",\"\",Настройки!C32)","v":""},"","","","","","","","","","","","","","","","","","","","","","","","","",{"$f":"IFERROR(AVERAGEIFS(Табл_оцінок[Оцінка],Табл_оцінок[Предмет],Обчислення!$C29,Табл_оцінок[Тип],Обчислення!AC$5)*Настройки!E32,\"\")","v":""},{"$f":"IFERROR(AVERAGEIFS(Табл_оцінок[Оцінка],Табл_оцінок[Предмет],Обчислення!$C29,Табл_оцінок[Тип],Обчислення!AD$5)*Настройки!F32,\"\")","v":""},{"$f":"IFERROR(AVERAGEIFS(Табл_оцінок[Оцінка],Табл_оцінок[Предмет],Обчислення!$C29,Табл_оцінок[Тип],Обчислення!AE$5)*Настройки!G32,\"\")","v":""},{"$f":"IFERROR(AVERAGEIFS(Табл_оцінок[Оцінка],Табл_оцінок[Предмет],Обчислення!$C29,Табл_оцінок[Тип],Обчислення!AF$5)*Настройки!H32,\"\")","v":""},{"$f":"IFERROR(AVERAGEIFS(Табл_оцінок[Оцінка],Табл_оцінок[Предмет],Обчислення!$C29,Табл_оцінок[Тип],Обчислення!AG$5)*Настройки!I32,\"\")","v":""},{"$f":"IFERROR(AVERAGEIFS(Табл_оцінок[Оцінка],Табл_оцінок[Предмет],Обчислення!$C29,Табл_оцінок[Тип],Обчислення!AH$5)*Настройки!J32,\"\")","v":""},{"$f":"IFERROR(AVERAGEIFS(Табл_оцінок[Оцінка],Табл_оцінок[Предмет],Обчислення!$C29,Табл_оцінок[Тип],Обчислення!AI$5)*Настройки!K32,\"\")","v":""},0,{"$f":"SUMIFS(Настройки!E32:K32,Обчислення!AC29:AI29,\">0\")","v":0},"","",""]
[null,null,{"$f":"IF(Настройки!C33=\"\",\"\",Настройки!C33)","v":""},"","","","","","","","","","","","","","","","","","","","","","","","","",{"$f":"IFERROR(AVERAGEIFS(Табл_оцінок[Оцінка],Табл_оцінок[Предмет],Обчислення!$C30,Табл_оцінок[Тип],Обчислення!AC$5)*Настройки!E33,\"\")","v":""},{"$f":"IFERROR(AVERAGEIFS(Табл_оцінок[Оцінка],Табл_оцінок[Предмет],Обчислення!$C30,Табл_оцінок[Тип],Обчислення!AD$5)*Настройки!F33,\"\")","v":""},{"$f":"IFERROR(AVERAGEIFS(Табл_оцінок[Оцінка],Табл_оцінок[Предмет],Обчислення!$C30,Табл_оцінок[Тип],Обчислення!AE$5)*Настройки!G33,\"\")","v":""},{"$f":"IFERROR(AVERAGEIFS(Табл_оцінок[Оцінка],Табл_оцінок[Предмет],Обчислення!$C30,Табл_оцінок[Тип],Обчислення!AF$5)*Настройки!H33,\"\")","v":""},{"$f":"IFERROR(AVERAGEIFS(Табл_оцінок[Оцінка],Табл_оцінок[Предмет],Обчислення!$C30,Табл_оцінок[Тип],Обчислення!AG$5)*Настройки!I33,\"\")","v":""},{"$f":"IFERROR(AVERAGEIFS(Табл_оцінок[Оцінка],Табл_оцінок[Предмет],Обчислення!$C30,Табл_оцінок[Тип],Обчислення!AH$5)*Настройки!J33,\"\")","v":""},{"$f":"IFERROR(AVERAGEIFS(Табл_оцінок[Оцінка],Табл_оцінок[Предмет],Обчислення!$C30,Табл_оцінок[Тип],Обчислення!AI$5)*Настройки!K33,\"\")","v":""},0,{"$f":"SUMIFS(Настройки!E33:K33,Обчислення!AC30:AI30,\">0\")","v":0},"","",""]
[]
[]
[null,1,{"$f":"'Відстеження оцінок'!C4&COUNTIF('Відстеження оцінок'!$C$4:C4,'Відстеження оцінок'!C4)","v":"Сучасна французька мова1"}]
[null,2,{"$f":"'Відстеження оцінок'!C5&COUNTIF('Відстеження оцінок'!$C$4:C5,'Відстеження оцінок'!C5)","v":"Поглиблене програмування на Java1"}]
[null,3,{"$f":"'Відстеження оцінок'!C6&COUNTIF('Відстеження оцінок'!$C$4:C6,'Відстеження оцінок'!C6)","v":"Іспанська мова1"}]
[null,4,{"$f":"'Відстеження оцінок'!C7&COUNTIF('Відстеження оцінок'!$C$4:C7,'Відстеження оцінок'!C7)","v":"Теоретична фізика1"}]
[null,5,{"$f":"'Відстеження оцінок'!C8&COUNTIF('Відстеження оцінок'!$C$4:C8,'Відстеження оцінок'!C8)","v":"Сучасна французька мова2"}]
[null,6,{"$f":"'Відстеження оцінок'!C9&COUNTIF('Відстеження оцінок'!$C$4:C9,'Відстеження оцінок'!C9)","v":"Сучасна французька мова3"}]
[null,7,{"$f":"'Відстеження оцінок'!C10&COUNTIF('Відстеження оцінок'!$C$4:C10,'Відстеження оцінок'!C10)","v":"Твір1"}]
[null,8,{"$f":"'Відстеження оцінок'!C11&COUNTIF('Відстеження оцінок'!$C$4:C11,'Відстеження оцінок'!C11)","v":"Математика 11"}]
[null,9,{"$f":"'Відстеження оцінок'!C12&COUNTIF('Відстеження оцінок'!$C$4:C12,'Відстеження оцінок'!C12)","v":"Математика 21"}]
[null,10,{"$f":"'Відстеження оцінок'!C13&COUNTIF('Відстеження оцінок'!$C$4:C14,'Відстеження оцінок'!C13)","v":"Математика 12"}]
[null,11,{"$f":"'Відстеження оцінок'!C14&COUNTIF('Відстеження оцінок'!$C$4:C14,'Відстеження оцінок'!C14)","v":"Математика 22"}]
[null,12,{"$f":"'Відстеження оцінок'!C15&COUNTIF('Відстеження оцінок'!$C$4:C15,'Відстеження оцінок'!C15)","v":"0"}]
[null,13,{"$f":"'Відстеження оцінок'!C16&COUNTIF('Відстеження оцінок'!$C$4:C16,'Відстеження оцінок'!C16)","v":"0"}]
[null,14,{"$f":"'Відстеження оцінок'!C17&COUNTIF('Відстеження оцінок'!$C$4:C17,'Відстеження оцінок'!C17)","v":"0"}]
[null,15,{"$f":"'Відстеження оцінок'!C18&COUNTIF('Відстеження оцінок'!$C$4:C18,'Відстеження оцінок'!C18)","v":"0"}]
[null,16,{"$f":"'Відстеження оцінок'!C19&COUNTIF('Відстеження оцінок'!$C$4:C19,'Відстеження оцінок'!C19)","v":"0"}]
[null,17,{"$f":"'Відстеження оцінок'!C20&COUNTIF('Відстеження оцінок'!$C$4:C20,'Відстеження оцінок'!C20)","v":"0"}]
[null,18,{"$f":"'Відстеження оцінок'!C21&COUNTIF('Відстеження оцінок'!$C$4:C21,'Відстеження оцінок'!C21)","v":"0"}]
[null,19,{"$f":"'Відстеження оцінок'!C22&COUNTIF('Відстеження оцінок'!$C$4:C22,'Відстеження оцінок'!C22)","v":"0"}]
[null,20,{"$f":"'Відстеження оцінок'!C23&COUNTIF('Відстеження оцінок'!$C$4:C23,'Відстеження оцінок'!C23)","v":"0"}]
[null,21,{"$f":"'Відстеження оцінок'!C24&COUNTIF('Відстеження оцінок'!$C$4:C24,'Відстеження оцінок'!C24)","v":"0"}]
[null,22,{"$f":"'Відстеження оцінок'!C25&COUNTIF('Відстеження оцінок'!$C$4:C25,'Відстеження оцінок'!C25)","v":"0"}]
[null,23,{"$f":"'Відстеження оцінок'!C26&COUNTIF('Відстеження оцінок'!$C$4:C26,'Відстеження оцінок'!C26)","v":"0"}]
[null,24,{"$f":"'Відстеження оцінок'!C27&COUNTIF('Відстеження оцінок'!$C$4:C27,'Відстеження оцінок'!C27)","v":"0"}]
[null,25,{"$f":"'Відстеження оцінок'!C28&COUNTIF('Відстеження оцінок'!$C$4:C28,'Відстеження оцінок'!C28)","v":"0"}]
[null,26,{"$f":"'Відстеження оцінок'!C29&COUNTIF('Відстеження оцінок'!$C$4:C29,'Відстеження оцінок'!C29)","v":"0"}]
[null,27,{"$f":"'Відстеження оцінок'!C30&COUNTIF('Відстеження оцінок'!$C$4:C30,'Відстеження оцінок'!C30)","v":"0"}]
[null,28,{"$f":"'Відстеження оцінок'!C31&COUNTIF('Відстеження оцінок'!$C$4:C31,'Відстеження оцінок'!C31)","v":"0"}]
[null,29,{"$f":"'Відстеження оцінок'!C32&COUNTIF('Відстеження оцінок'!$C$4:C32,'Відстеження оцінок'!C32)","v":"0"}]
[null,30,{"$f":"'Відстеження оцінок'!C33&COUNTIF('Відстеження оцінок'!$C$4:C33,'Відстеження оцінок'!C33)","v":"0"}]
[null,31,{"$f":"'Відстеження оцінок'!C34&COUNTIF('Відстеження оцінок'!$C$4:C34,'Відстеження оцінок'!C34)","v":"0"}]
[null,32,{"$f":"'Відстеження оцінок'!C35&COUNTIF('Відстеження оцінок'!$C$4:C35,'Відстеження оцінок'!C35)","v":"0"}]
[null,33,{"$f":"'Відстеження оцінок'!C36&COUNTIF('Відстеження оцінок'!$C$4:C36,'Відстеження оцінок'!C36)","v":"0"}]
[null,34,{"$f":"'Відстеження оцінок'!C37&COUNTIF('Відстеження оцінок'!$C$4:C37,'Відстеження оцінок'!C37)","v":"0"}]
[null,35,{"$f":"'Відстеження оцінок'!C38&COUNTIF('Відстеження оцінок'!$C$4:C38,'Відстеження оцінок'!C38)","v":"0"}]
[null,36,{"$f":"'Відстеження оцінок'!C39&COUNTIF('Відстеження оцінок'!$C$4:C39,'Відстеження оцінок'!C39)","v":"0"}]
[null,37,{"$f":"'Відстеження оцінок'!C40&COUNTIF('Відстеження оцінок'!$C$4:C40,'Відстеження оцінок'!C40)","v":"0"}]
[null,38,{"$f":"'Відстеження оцінок'!C41&COUNTIF('Відстеження оцінок'!$C$4:C41,'Відстеження оцінок'!C41)","v":"0"}]
[null,39,{"$f":"'Відстеження оцінок'!C42&COUNTIF('Відстеження оцінок'!$C$4:C42,'Відстеження оцінок'!C42)","v":"0"}]
[null,40,{"$f":"'Відстеження оцінок'!C43&COUNTIF('Відстеження оцінок'!$C$4:C43,'Відстеження оцінок'!C43)","v":"0"}]
[null,41,{"$f":"'Відстеження оцінок'!C44&COUNTIF('Відстеження оцінок'!$C$4:C44,'Відстеження оцінок'!C44)","v":"0"}]
[null,42,{"$f":"'Відстеження оцінок'!C45&COUNTIF('Відстеження оцінок'!$C$4:C45,'Відстеження оцінок'!C45)","v":"0"}]
[null,43,{"$f":"'Відстеження оцінок'!C46&COUNTIF('Відстеження оцінок'!$C$4:C46,'Відстеження оцінок'!C46)","v":"0"}]
[null,44,{"$f":"'Відстеження оцінок'!C47&COUNTIF('Відстеження оцінок'!$C$4:C47,'Відстеження оцінок'!C47)","v":"0"}]
[null,45,{"$f":"'Відстеження оцінок'!C48&COUNTIF('Відстеження оцінок'!$C$4:C48,'Відстеження оцінок'!C48)","v":"0"}]
[null,46,{"$f":"'Відстеження оцінок'!C49&COUNTIF('Відстеження оцінок'!$C$4:C49,'Відстеження оцінок'!C49)","v":"0"}]
[null,47,{"$f":"'Відстеження оцінок'!C50&COUNTIF('Відстеження оцінок'!$C$4:C50,'Відстеження оцінок'!C50)","v":"0"}]
[null,48,{"$f":"'Відстеження оцінок'!C51&COUNTIF('Відстеження оцінок'!$C$4:C51,'Відстеження оцінок'!C51)","v":"0"}]
[null,49,{"$f":"'Відстеження оцінок'!C52&COUNTIF('Відстеження оцінок'!$C$4:C52,'Відстеження оцінок'!C52)","v":"0"}]
[null,50,{"$f":"'Відстеження оцінок'!C53&COUNTIF('Відстеження оцінок'!$C$4:C53,'Відстеження оцінок'!C53)","v":"0"}]
[null,51,{"$f":"'Відстеження оцінок'!C54&COUNTIF('Відстеження оцінок'!$C$4:C54,'Відстеження оцінок'!C54)","v":"0"}]
[null,52,{"$f":"'Відстеження оцінок'!C55&COUNTIF('Відстеження оцінок'!$C$4:C55,'Відстеження оцінок'!C55)","v":"0"}]
[null,53,{"$f":"'Відстеження оцінок'!C56&COUNTIF('Відстеження оцінок'!$C$4:C56,'Відстеження оцінок'!C56)","v":"0"}]
[null,54,{"$f":"'Відстеження оцінок'!C57&COUNTIF('Відстеження оцінок'!$C$4:C57,'Відстеження оцінок'!C57)","v":"0"}]
[null,55,{"$f":"'Відстеження оцінок'!C58&COUNTIF('Відстеження оцінок'!$C$4:C58,'Відстеження оцінок'!C58)","v":"0"}]
[null,56,{"$f":"'Відстеження оцінок'!C59&COUNTIF('Відстеження оцінок'!$C$4:C59,'Відстеження оцінок'!C59)","v":"0"}]
[null,57,{"$f":"'Відстеження оцінок'!C60&COUNTIF('Відстеження оцінок'!$C$4:C60,'Відстеження оцінок'!C60)","v":"0"}]
[null,58,{"$f":"'Відстеження оцінок'!C61&COUNTIF('Відстеження оцінок'!$C$4:C61,'Відстеження оцінок'!C61)","v":"0"}]
[null,59,{"$f":"'Відстеження оцінок'!C62&COUNTIF('Відстеження оцінок'!$C$4:C62,'Відстеження оцінок'!C62)","v":"0"}]
[null,60,{"$f":"'Відстеження оцінок'!C63&COUNTIF('Відстеження оцінок'!$C$4:C63,'Відстеження оцінок'!C63)","v":"0"}]
[null,61,{"$f":"'Відстеження оцінок'!C64&COUNTIF('Відстеження оцінок'!$C$4:C64,'Відстеження оцінок'!C64)","v":"0"}]
[null,62,{"$f":"'Відстеження оцінок'!C65&COUNTIF('Відстеження оцінок'!$C$4:C65,'Відстеження оцінок'!C65)","v":"0"}]
[null,63,{"$f":"'Відстеження оцінок'!C66&COUNTIF('Відстеження оцінок'!$C$4:C66,'Відстеження оцінок'!C66)","v":"0"}]
[null,64,{"$f":"'Відстеження оцінок'!C67&COUNTIF('Відстеження оцінок'!$C$4:C67,'Відстеження оцінок'!C67)","v":"0"}]
[null,65,{"$f":"'Відстеження оцінок'!C68&COUNTIF('Відстеження оцінок'!$C$4:C68,'Відстеження оцінок'!C68)","v":"0"}]
[null,66,{"$f":"'Відстеження оцінок'!C69&COUNTIF('Відстеження оцінок'!$C$4:C69,'Відстеження оцінок'!C69)","v":"0"}]
[null,67,{"$f":"'Відстеження оцінок'!C70&COUNTIF('Відстеження оцінок'!$C$4:C70,'Відстеження оцінок'!C70)","v":"0"}]
[null,68,{"$f":"'Відстеження оцінок'!C71&COUNTIF('Відстеження оцінок'!$C$4:C71,'Відстеження оцінок'!C71)","v":"0"}]
[null,69,{"$f":"'Відстеження оцінок'!C72&COUNTIF('Відстеження оцінок'!$C$4:C72,'Відстеження оцінок'!C72)","v":"0"}]
[null,70,{"$f":"'Відстеження оцінок'!C73&COUNTIF('Відстеження оцінок'!$C$4:C73,'Відстеження оцінок'!C73)","v":"0"}]
[null,71,{"$f":"'Відстеження оцінок'!C74&COUNTIF('Відстеження оцінок'!$C$4:C74,'Відстеження оцінок'!C74)","v":"0"}]
[null,72,{"$f":"'Відстеження оцінок'!C75&COUNTIF('Відстеження оцінок'!$C$4:C75,'Відстеження оцінок'!C75)","v":"0"}]
[null,73,{"$f":"'Відстеження оцінок'!C76&COUNTIF('Відстеження оцінок'!$C$4:C76,'Відстеження оцінок'!C76)","v":"0"}]
[null,74,{"$f":"'Відстеження оцінок'!C77&COUNTIF('Відстеження оцінок'!$C$4:C77,'Відстеження оцінок'!C77)","v":"0"}]
[null,75,{"$f":"'Відстеження оцінок'!C78&COUNTIF('Відстеження оцінок'!$C$4:C78,'Відстеження оцінок'!C78)","v":"0"}]
[null,76,{"$f":"'Відстеження оцінок'!C79&COUNTIF('Відстеження оцінок'!$C$4:C79,'Відстеження оцінок'!C79)","v":"0"}]
[null,77,{"$f":"'Відстеження оцінок'!C80&COUNTIF('Відстеження оцінок'!$C$4:C80,'Відстеження оцінок'!C80)","v":"0"}]
[null,78,{"$f":"'Відстеження оцінок'!C81&COUNTIF('Відстеження оцінок'!$C$4:C81,'Відстеження оцінок'!C81)","v":"0"}]
[null,79,{"$f":"'Відстеження оцінок'!C82&COUNTIF('Відстеження оцінок'!$C$4:C82,'Відстеження оцінок'!C82)","v":"0"}]
[null,80,{"$f":"'Відстеження оцінок'!C83&COUNTIF('Відстеження оцінок'!$C$4:C83,'Відстеження оцінок'!C83)","v":"0"}]
[null,81,{"$f":"'Відстеження оцінок'!C84&COUNTIF('Відстеження оцінок'!$C$4:C84,'Відстеження оцінок'!C84)","v":"0"}]
[null,82,{"$f":"'Відстеження оцінок'!C85&COUNTIF('Відстеження оцінок'!$C$4:C85,'Відстеження оцінок'!C85)","v":"0"}]
[null,83,{"$f":"'Відстеження оцінок'!C86&COUNTIF('Відстеження оцінок'!$C$4:C86,'Відстеження оцінок'!C86)","v":"0"}]
[null,84,{"$f":"'Відстеження оцінок'!C87&COUNTIF('Відстеження оцінок'!$C$4:C87,'Відстеження оцінок'!C87)","v":"0"}]
[null,85,{"$f":"'Відстеження оцінок'!C88&COUNTIF('Відстеження оцінок'!$C$4:C88,'Відстеження оцінок'!C88)","v":"0"}]
[null,86,{"$f":"'Відстеження оцінок'!C89&COUNTIF('Відстеження оцінок'!$C$4:C89,'Відстеження оцінок'!C89)","v":"0"}]
[null,87,{"$f":"'Відстеження оцінок'!C90&COUNTIF('Відстеження оцінок'!$C$4:C90,'Відстеження оцінок'!C90)","v":"0"}]
[null,88,{"$f":"'Відстеження оцінок'!C91&COUNTIF('Відстеження оцінок'!$C$4:C91,'Відстеження оцінок'!C91)","v":"0"}]
[null,89,{"$f":"'Відстеження оцінок'!C92&COUNTIF('Відстеження оцінок'!$C$4:C92,'Відстеження оцінок'!C92)","v":"0"}]
[null,90,{"$f":"'Відстеження оцінок'!C93&COUNTIF('Відстеження оцінок'!$C$4:C93,'Відстеження оцінок'!C93)","v":"0"}]
[null,91,{"$f":"'Відстеження оцінок'!C94&COUNTIF('Відстеження оцінок'!$C$4:C94,'Відстеження оцінок'!C94)","v":"0"}]
[null,92,{"$f":"'Відстеження оцінок'!C95&COUNTIF('Відстеження оцінок'!$C$4:C95,'Відстеження оцінок'!C95)","v":"0"}]
[null,93,{"$f":"'Відстеження оцінок'!C96&COUNTIF('Відстеження оцінок'!$C$4:C96,'Відстеження оцінок'!C96)","v":"0"}]
[null,94,{"$f":"'Відстеження оцінок'!C97&COUNTIF('Відстеження оцінок'!$C$4:C97,'Відстеження оцінок'!C97)","v":"0"}]
[null,95,{"$f":"'Відстеження оцінок'!C98&COUNTIF('Відстеження оцінок'!$C$4:C98,'Відстеження оцінок'!C98)","v":"0"}]
[null,96,{"$f":"'Відстеження оцінок'!C99&COUNTIF('Відстеження оцінок'!$C$4:C99,'Відстеження оцінок'!C99)","v":"0"}]
[null,97,{"$f":"'Відстеження оцінок'!C100&COUNTIF('Відстеження оцінок'!$C$4:C100,'Відстеження оцінок'!C100)","v":"0"}]
[null,98,{"$f":"'Відстеження оцінок'!C101&COUNTIF('Відстеження оцінок'!$C$4:C101,'Відстеження оцінок'!C101)","v":"0"}]
[null,99,{"$f":"'Відстеження оцінок'!C102&COUNTIF('Відстеження оцінок'!$C$4:C102,'Відстеження оцінок'!C102)","v":"0"}]
[null,100,{"$f":"'Відстеження оцінок'!C103&COUNTIF('Відстеження оцінок'!$C$4:C103,'Відстеження оцінок'!C103)","v":"0"}]
[null,101,{"$f":"'Відстеження оцінок'!C104&COUNTIF('Відстеження оцінок'!$C$4:C104,'Відстеження оцінок'!C104)","v":"0"}]
[null,102,{"$f":"'Відстеження оцінок'!C105&COUNTIF('Відстеження оцінок'!$C$4:C105,'Відстеження оцінок'!C105)","v":"0"}]
[null,103,{"$f":"'Відстеження оцінок'!C106&COUNTIF('Відстеження оцінок'!$C$4:C106,'Відстеження оцінок'!C106)","v":"0"}]
[null,104,{"$f":"'Відстеження оцінок'!C107&COUNTIF('Відстеження оцінок'!$C$4:C107,'Відстеження оцінок'!C107)","v":"0"}]
[null,105,{"$f":"'Відстеження оцінок'!C108&COUNTIF('Відстеження оцінок'!$C$4:C108,'Відстеження оцінок'!C108)","v":"0"}]
[null,106,{"$f":"'Відстеження оцінок'!C109&COUNTIF('Відстеження оцінок'!$C$4:C109,'Відстеження оцінок'!C109)","v":"0"}]
[null,107,{"$f":"'Відстеження оцінок'!C110&COUNTIF('Відстеження оцінок'!$C$4:C110,'Відстеження оцінок'!C110)","v":"0"}]
[null,108,{"$f":"'Відстеження оцінок'!C111&COUNTIF('Відстеження оцінок'!$C$4:C111,'Відстеження оцінок'!C111)","v":"0"}]
[null,109,{"$f":"'Відстеження оцінок'!C112&COUNTIF('Відстеження оцінок'!$C$4:C112,'Відстеження оцінок'!C112)","v":"0"}]
[null,110,{"$f":"'Відстеження оцінок'!C113&COUNTIF('Відстеження оцінок'!$C$4:C113,'Відстеження оцінок'!C113)","v":"0"}]
[null,111,{"$f":"'Відстеження оцінок'!C114&COUNTIF('Відстеження оцінок'!$C$4:C114,'Відстеження оцінок'!C114)","v":"0"}]
[null,112,{"$f":"'Відстеження оцінок'!C115&COUNTIF('Відстеження оцінок'!$C$4:C115,'Відстеження оцінок'!C115)","v":"0"}]
[null,113,{"$f":"'Відстеження оцінок'!C116&COUNTIF('Відстеження оцінок'!$C$4:C116,'Відстеження оцінок'!C116)","v":"0"}]
[null,114,{"$f":"'Відстеження оцінок'!C117&COUNTIF('Відстеження оцінок'!$C$4:C117,'Відстеження оцінок'!C117)","v":"0"}]
[null,115,{"$f":"'Відстеження оцінок'!C118&COUNTIF('Відстеження оцінок'!$C$4:C118,'Відстеження оцінок'!C118)","v":"0"}]
[null,116,{"$f":"'Відстеження оцінок'!C119&COUNTIF('Відстеження оцінок'!$C$4:C119,'Відстеження оцінок'!C119)","v":"0"}]
[null,117,{"$f":"'Відстеження оцінок'!C120&COUNTIF('Відстеження оцінок'!$C$4:C120,'Відстеження оцінок'!C120)","v":"0"}]
[null,118,{"$f":"'Відстеження оцінок'!C121&COUNTIF('Відстеження оцінок'!$C$4:C121,'Відстеження оцінок'!C121)","v":"0"}]
[null,119,{"$f":"'Відстеження оцінок'!C122&COUNTIF('Відстеження оцінок'!$C$4:C122,'Відстеження оцінок'!C122)","v":"0"}]
[null,120,{"$f":"'Відстеження оцінок'!C123&COUNTIF('Відстеження оцінок'!$C$4:C123,'Відстеження оцінок'!C123)","v":"0"}]
[null,121,{"$f":"'Відстеження оцінок'!C124&COUNTIF('Відстеження оцінок'!$C$4:C124,'Відстеження оцінок'!C124)","v":"0"}]
[null,122,{"$f":"'Відстеження оцінок'!C125&COUNTIF('Відстеження оцінок'!$C$4:C125,'Відстеження оцінок'!C125)","v":"0"}]
[null,123,{"$f":"'Відстеження оцінок'!C126&COUNTIF('Відстеження оцінок'!$C$4:C126,'Відстеження оцінок'!C126)","v":"0"}]
[null,124,{"$f":"'Відстеження оцінок'!C127&COUNTIF('Відстеження оцінок'!$C$4:C127,'Відстеження оцінок'!C127)","v":"0"}]
[null,125,{"$f":"'Відстеження оцінок'!C128&COUNTIF('Відстеження оцінок'!$C$4:C128,'Відстеження оцінок'!C128)","v":"0"}]
[null,126,{"$f":"'Відстеження оцінок'!C129&COUNTIF('Відстеження оцінок'!$C$4:C129,'Відстеження оцінок'!C129)","v":"0"}]
[null,127,{"$f":"'Відстеження оцінок'!C130&COUNTIF('Відстеження оцінок'!$C$4:C130,'Відстеження оцінок'!C130)","v":"0"}]
[null,128,{"$f":"'Відстеження оцінок'!C131&COUNTIF('Відстеження оцінок'!$C$4:C131,'Відстеження оцінок'!C131)","v":"0"}]
[null,129,{"$f":"'Відстеження оцінок'!C132&COUNTIF('Відстеження оцінок'!$C$4:C132,'Відстеження оцінок'!C132)","v":"0"}]
[null,130,{"$f":"'Відстеження оцінок'!C133&COUNTIF('Відстеження оцінок'!$C$4:C133,'Відстеження оцінок'!C133)","v":"0"}]
[null,131,{"$f":"'Відстеження оцінок'!C134&COUNTIF('Відстеження оцінок'!$C$4:C134,'Відстеження оцінок'!C134)","v":"0"}]
[null,132,{"$f":"'Відстеження оцінок'!C135&COUNTIF('Відстеження оцінок'!$C$4:C135,'Відстеження оцінок'!C135)","v":"0"}]
[null,133,{"$f":"'Відстеження оцінок'!C136&COUNTIF('Відстеження оцінок'!$C$4:C136,'Відстеження оцінок'!C136)","v":"0"}]
[null,134,{"$f":"'Відстеження оцінок'!C137&COUNTIF('Відстеження оцінок'!$C$4:C137,'Відстеження оцінок'!C137)","v":"0"}]
[null,135,{"$f":"'Відстеження оцінок'!C138&COUNTIF('Відстеження оцінок'!$C$4:C138,'Відстеження оцінок'!C138)","v":"0"}]
[null,136,{"$f":"'Відстеження оцінок'!C139&COUNTIF('Відстеження оцінок'!$C$4:C139,'Відстеження оцінок'!C139)","v":"0"}]
[null,137,{"$f":"'Відстеження оцінок'!C140&COUNTIF('Відстеження оцінок'!$C$4:C140,'Відстеження оцінок'!C140)","v":"0"}]
[null,138,{"$f":"'Відстеження оцінок'!C141&COUNTIF('Відстеження оцінок'!$C$4:C141,'Відстеження оцінок'!C141)","v":"0"}]
[null,139,{"$f":"'Відстеження оцінок'!C142&COUNTIF('Відстеження оцінок'!$C$4:C142,'Відстеження оцінок'!C142)","v":"0"}]
[null,140,{"$f":"'Відстеження оцінок'!C143&COUNTIF('Відстеження оцінок'!$C$4:C143,'Відстеження оцінок'!C143)","v":"0"}]
[null,141,{"$f":"'Відстеження оцінок'!C144&COUNTIF('Відстеження оцінок'!$C$4:C144,'Відстеження оцінок'!C144)","v":"0"}]
[null,142,{"$f":"'Відстеження оцінок'!C145&COUNTIF('Відстеження оцінок'!$C$4:C145,'Відстеження оцінок'!C145)","v":"0"}]
[null,143,{"$f":"'Відстеження оцінок'!C146&COUNTIF('Відстеження оцінок'!$C$4:C146,'Відстеження оцінок'!C146)","v":"0"}]
[null,144,{"$f":"'Відстеження оцінок'!C147&COUNTIF('Відстеження оцінок'!$C$4:C147,'Відстеження оцінок'!C147)","v":"0"}]
[null,145,{"$f":"'Відстеження оцінок'!C148&COUNTIF('Відстеження оцінок'!$C$4:C148,'Відстеження оцінок'!C148)","v":"0"}]
[null,146,{"$f":"'Відстеження оцінок'!C149&COUNTIF('Відстеження оцінок'!$C$4:C149,'Відстеження оцінок'!C149)","v":"0"}]
[null,147,{"$f":"'Відстеження оцінок'!C150&COUNTIF('Відстеження оцінок'!$C$4:C150,'Відстеження оцінок'!C150)","v":"0"}]
[null,148,{"$f":"'Відстеження оцінок'!C151&COUNTIF('Відстеження оцінок'!$C$4:C151,'Відстеження оцінок'!C151)","v":"0"}]
[null,149,{"$f":"'Відстеження оцінок'!C152&COUNTIF('Відстеження оцінок'!$C$4:C152,'Відстеження оцінок'!C152)","v":"0"}]
[null,150,{"$f":"'Відстеження оцінок'!C153&COUNTIF('Відстеження оцінок'!$C$4:C153,'Відстеження оцінок'!C153)","v":"0"}]
[null,151,{"$f":"'Відстеження оцінок'!C154&COUNTIF('Відстеження оцінок'!$C$4:C154,'Відстеження оцінок'!C154)","v":"0"}]
[null,152,{"$f":"'Відстеження оцінок'!C155&COUNTIF('Відстеження оцінок'!$C$4:C155,'Відстеження оцінок'!C155)","v":"0"}]
[null,153,{"$f":"'Відстеження оцінок'!C156&COUNTIF('Відстеження оцінок'!$C$4:C156,'Відстеження оцінок'!C156)","v":"0"}]
[null,154,{"$f":"'Відстеження оцінок'!C157&COUNTIF('Відстеження оцінок'!$C$4:C157,'Відстеження оцінок'!C157)","v":"0"}]
[null,155,{"$f":"'Відстеження оцінок'!C158&COUNTIF('Відстеження оцінок'!$C$4:C158,'Відстеження оцінок'!C158)","v":"0"}]
[null,156,{"$f":"'Відстеження оцінок'!C159&COUNTIF('Відстеження оцінок'!$C$4:C159,'Відстеження оцінок'!C159)","v":"0"}]
[null,157,{"$f":"'Відстеження оцінок'!C160&COUNTIF('Відстеження оцінок'!$C$4:C160,'Відстеження оцінок'!C160)","v":"0"}]
[null,158,{"$f":"'Відстеження оцінок'!C161&COUNTIF('Відстеження оцінок'!$C$4:C161,'Відстеження оцінок'!C161)","v":"0"}]
[null,159,{"$f":"'Відстеження оцінок'!C162&COUNTIF('Відстеження оцінок'!$C$4:C162,'Відстеження оцінок'!C162)","v":"0"}]
[null,160,{"$f":"'Відстеження оцінок'!C163&COUNTIF('Відстеження оцінок'!$C$4:C163,'Відстеження оцінок'!C163)","v":"0"}]
[null,161,{"$f":"'Відстеження оцінок'!C164&COUNTIF('Відстеження оцінок'!$C$4:C164,'Відстеження оцінок'!C164)","v":"0"}]
[null,162,{"$f":"'Відстеження оцінок'!C165&COUNTIF('Відстеження оцінок'!$C$4:C165,'Відстеження оцінок'!C165)","v":"0"}]
[null,163,{"$f":"'Відстеження оцінок'!C166&COUNTIF('Відстеження оцінок'!$C$4:C166,'Відстеження оцінок'!C166)","v":"0"}]
[null,164,{"$f":"'Відстеження оцінок'!C167&COUNTIF('Відстеження оцінок'!$C$4:C167,'Відстеження оцінок'!C167)","v":"0"}]
[null,165,{"$f":"'Відстеження оцінок'!C168&COUNTIF('Відстеження оцінок'!$C$4:C168,'Відстеження оцінок'!C168)","v":"0"}]
[null,166,{"$f":"'Відстеження оцінок'!C169&COUNTIF('Відстеження оцінок'!$C$4:C169,'Відстеження оцінок'!C169)","v":"0"}]
[null,167,{"$f":"'Відстеження оцінок'!C170&COUNTIF('Відстеження оцінок'!$C$4:C170,'Відстеження оцінок'!C170)","v":"0"}]
[null,168,{"$f":"'Відстеження оцінок'!C171&COUNTIF('Відстеження оцінок'!$C$4:C171,'Відстеження оцінок'!C171)","v":"0"}]
[null,169,{"$f":"'Відстеження оцінок'!C172&COUNTIF('Відстеження оцінок'!$C$4:C172,'Відстеження оцінок'!C172)","v":"0"}]
[null,170,{"$f":"'Відстеження оцінок'!C173&COUNTIF('Відстеження оцінок'!$C$4:C173,'Відстеження оцінок'!C173)","v":"0"}]
[null,171,{"$f":"'Відстеження оцінок'!C174&COUNTIF('Відстеження оцінок'!$C$4:C174,'Відстеження оцінок'!C174)","v":"0"}]
[null,172,{"$f":"'Відстеження оцінок'!C175&COUNTIF('Відстеження оцінок'!$C$4:C175,'Відстеження оцінок'!C175)","v":"0"}]
[null,173,{"$f":"'Відстеження оцінок'!C176&COUNTIF('Відстеження оцінок'!$C$4:C176,'Відстеження оцінок'!C176)","v":"0"}]
[null,174,{"$f":"'Відстеження оцінок'!C177&COUNTIF('Відстеження оцінок'!$C$4:C177,'Відстеження оцінок'!C177)","v":"0"}]
[null,175,{"$f":"'Відстеження оцінок'!C178&COUNTIF('Відстеження оцінок'!$C$4:C178,'Відстеження оцінок'!C178)","v":"0"}]
[null,176,{"$f":"'Відстеження оцінок'!C179&COUNTIF('Відстеження оцінок'!$C$4:C179,'Відстеження оцінок'!C179)","v":"0"}]
[null,177,{"$f":"'Відстеження оцінок'!C180&COUNTIF('Відстеження оцінок'!$C$4:C180,'Відстеження оцінок'!C180)","v":"0"}]
[null,178,{"$f":"'Відстеження оцінок'!C181&COUNTIF('Відстеження оцінок'!$C$4:C181,'Відстеження оцінок'!C181)","v":"0"}]
[null,179,{"$f":"'Відстеження оцінок'!C182&COUNTIF('Відстеження оцінок'!$C$4:C182,'Відстеження оцінок'!C182)","v":"0"}]
[null,180,{"$f":"'Відстеження оцінок'!C183&COUNTIF('Відстеження оцінок'!$C$4:C183,'Відстеження оцінок'!C183)","v":"0"}]
[null,181,{"$f":"'Відстеження оцінок'!C184&COUNTIF('Відстеження оцінок'!$C$4:C184,'Відстеження оцінок'!C184)","v":"0"}]
[null,182,{"$f":"'Відстеження оцінок'!C185&COUNTIF('Відстеження оцінок'!$C$4:C185,'Відстеження оцінок'!C185)","v":"0"}]
[null,183,{"$f":"'Відстеження оцінок'!C186&COUNTIF('Відстеження оцінок'!$C$4:C186,'Відстеження оцінок'!C186)","v":"0"}]
[null,184,{"$f":"'Відстеження оцінок'!C187&COUNTIF('Відстеження оцінок'!$C$4:C187,'Відстеження оцінок'!C187)","v":"0"}]
[null,185,{"$f":"'Відстеження оцінок'!C188&COUNTIF('Відстеження оцінок'!$C$4:C188,'Відстеження оцінок'!C188)","v":"0"}]
[null,186,{"$f":"'Відстеження оцінок'!C189&COUNTIF('Відстеження оцінок'!$C$4:C189,'Відстеження оцінок'!C189)","v":"0"}]
[null,187,{"$f":"'Відстеження оцінок'!C190&COUNTIF('Відстеження оцінок'!$C$4:C190,'Відстеження оцінок'!C190)","v":"0"}]
[null,188,{"$f":"'Відстеження оцінок'!C191&COUNTIF('Відстеження оцінок'!$C$4:C191,'Відстеження оцінок'!C191)","v":"0"}]
[null,189,{"$f":"'Відстеження оцінок'!C192&COUNTIF('Відстеження оцінок'!$C$4:C192,'Відстеження оцінок'!C192)","v":"0"}]
[null,190,{"$f":"'Відстеження оцінок'!C193&COUNTIF('Відстеження оцінок'!$C$4:C193,'Відстеження оцінок'!C193)","v":"0"}]
[null,191,{"$f":"'Відстеження оцінок'!C194&COUNTIF('Відстеження оцінок'!$C$4:C194,'Відстеження оцінок'!C194)","v":"0"}]
[null,192,{"$f":"'Відстеження оцінок'!C195&COUNTIF('Відстеження оцінок'!$C$4:C195,'Відстеження оцінок'!C195)","v":"0"}]
[null,193,{"$f":"'Відстеження оцінок'!C196&COUNTIF('Відстеження оцінок'!$C$4:C196,'Відстеження оцінок'!C196)","v":"0"}]
[null,194,{"$f":"'Відстеження оцінок'!C197&COUNTIF('Відстеження оцінок'!$C$4:C197,'Відстеження оцінок'!C197)","v":"0"}]
[null,195,{"$f":"'Відстеження оцінок'!C198&COUNTIF('Відстеження оцінок'!$C$4:C198,'Відстеження оцінок'!C198)","v":"0"}]
[null,196,{"$f":"'Відстеження оцінок'!C199&COUNTIF('Відстеження оцінок'!$C$4:C199,'Відстеження оцінок'!C199)","v":"0"}]
[null,197,{"$f":"'Відстеження оцінок'!C200&COUNTIF('Відстеження оцінок'!$C$4:C200,'Відстеження оцінок'!C200)","v":"0"}]
[null,198,{"$f":"'Відстеження оцінок'!C201&COUNTIF('Відстеження оцінок'!$C$4:C201,'Відстеження оцінок'!C201)","v":"0"}]
[null,199,{"$f":"'Відстеження оцінок'!C202&COUNTIF('Відстеження оцінок'!$C$4:C202,'Відстеження оцінок'!C202)","v":"0"}]
[null,200,{"$f":"'Відстеження оцінок'!C203&COUNTIF('Відстеження оцінок'!$C$4:C203,'Відстеження оцінок'!C203)","v":"0"}]
[null,201,{"$f":"'Відстеження оцінок'!C204&COUNTIF('Відстеження оцінок'!$C$4:C204,'Відстеження оцінок'!C204)","v":"0"}]
[null,202,{"$f":"'Відстеження оцінок'!C205&COUNTIF('Відстеження оцінок'!$C$4:C205,'Відстеження оцінок'!C205)","v":"0"}]
[null,203,{"$f":"'Відстеження оцінок'!C206&COUNTIF('Відстеження оцінок'!$C$4:C206,'Відстеження оцінок'!C206)","v":"0"}]
[null,204,{"$f":"'Відстеження оцінок'!C207&COUNTIF('Відстеження оцінок'!$C$4:C207,'Відстеження оцінок'!C207)","v":"0"}]
[null,205,{"$f":"'Відстеження оцінок'!C208&COUNTIF('Відстеження оцінок'!$C$4:C208,'Відстеження оцінок'!C208)","v":"0"}]
[null,206,{"$f":"'Відстеження оцінок'!C209&COUNTIF('Відстеження оцінок'!$C$4:C209,'Відстеження оцінок'!C209)","v":"0"}]
[null,207,{"$f":"'Відстеження оцінок'!C210&COUNTIF('Відстеження оцінок'!$C$4:C210,'Відстеження оцінок'!C210)","v":"0"}]
[null,208,{"$f":"'Відстеження оцінок'!C211&COUNTIF('Відстеження оцінок'!$C$4:C211,'Відстеження оцінок'!C211)","v":"0"}]
[null,209,{"$f":"'Відстеження оцінок'!C212&COUNTIF('Відстеження оцінок'!$C$4:C212,'Відстеження оцінок'!C212)","v":"0"}]
[null,210,{"$f":"'Відстеження оцінок'!C213&COUNTIF('Відстеження оцінок'!$C$4:C213,'Відстеження оцінок'!C213)","v":"0"}]
[null,211,{"$f":"'Відстеження оцінок'!C214&COUNTIF('Відстеження оцінок'!$C$4:C214,'Відстеження оцінок'!C214)","v":"0"}]
[null,212,{"$f":"'Відстеження оцінок'!C215&COUNTIF('Відстеження оцінок'!$C$4:C215,'Відстеження оцінок'!C215)","v":"0"}]
[null,213,{"$f":"'Відстеження оцінок'!C216&COUNTIF('Відстеження оцінок'!$C$4:C216,'Відстеження оцінок'!C216)","v":"0"}]
[null,214,{"$f":"'Відстеження оцінок'!C217&COUNTIF('Відстеження оцінок'!$C$4:C217,'Відстеження оцінок'!C217)","v":"0"}]
[null,215,{"$f":"'Відстеження оцінок'!C218&COUNTIF('Відстеження оцінок'!$C$4:C218,'Відстеження оцінок'!C218)","v":"0"}]
[null,216,{"$f":"'Відстеження оцінок'!C219&COUNTIF('Відстеження оцінок'!$C$4:C219,'Відстеження оцінок'!C219)","v":"0"}]
[null,217,{"$f":"'Відстеження оцінок'!C220&COUNTIF('Відстеження оцінок'!$C$4:C220,'Відстеження оцінок'!C220)","v":"0"}]
[null,218,{"$f":"'Відстеження оцінок'!C221&COUNTIF('Відстеження оцінок'!$C$4:C221,'Відстеження оцінок'!C221)","v":"0"}]
[null,219,{"$f":"'Відстеження оцінок'!C222&COUNTIF('Відстеження оцінок'!$C$4:C222,'Відстеження оцінок'!C222)","v":"0"}]
[null,220,{"$f":"'Відстеження оцінок'!C223&COUNTIF('Відстеження оцінок'!$C$4:C223,'Відстеження оцінок'!C223)","v":"0"}]
[null,221,{"$f":"'Відстеження оцінок'!C224&COUNTIF('Відстеження оцінок'!$C$4:C224,'Відстеження оцінок'!C224)","v":"0"}]
[null,222,{"$f":"'Відстеження оцінок'!C225&COUNTIF('Відстеження оцінок'!$C$4:C225,'Відстеження оцінок'!C225)","v":"0"}]
[null,223,{"$f":"'Відстеження оцінок'!C226&COUNTIF('Відстеження оцінок'!$C$4:C226,'Відстеження оцінок'!C226)","v":"0"}]
[null,224,{"$f":"'Відстеження оцінок'!C227&COUNTIF('Відстеження оцінок'!$C$4:C227,'Відстеження оцінок'!C227)","v":"0"}]
[null,225,{"$f":"'Відстеження оцінок'!C228&COUNTIF('Відстеження оцінок'!$C$4:C228,'Відстеження оцінок'!C228)","v":"0"}]
[null,226,{"$f":"'Відстеження оцінок'!C229&COUNTIF('Відстеження оцінок'!$C$4:C229,'Відстеження оцінок'!C229)","v":"0"}]
[null,227,{"$f":"'Відстеження оцінок'!C230&COUNTIF('Відстеження оцінок'!$C$4:C230,'Відстеження оцінок'!C230)","v":"0"}]
[null,228,{"$f":"'Відстеження оцінок'!C231&COUNTIF('Відстеження оцінок'!$C$4:C231,'Відстеження оцінок'!C231)","v":"0"}]
[null,229,{"$f":"'Відстеження оцінок'!C232&COUNTIF('Відстеження оцінок'!$C$4:C232,'Відстеження оцінок'!C232)","v":"0"}]
[null,230,{"$f":"'Відстеження оцінок'!C233&COUNTIF('Відстеження оцінок'!$C$4:C233,'Відстеження оцінок'!C233)","v":"0"}]
[null,231,{"$f":"'Відстеження оцінок'!C234&COUNTIF('Відстеження оцінок'!$C$4:C234,'Відстеження оцінок'!C234)","v":"0"}]
[null,232,{"$f":"'Відстеження оцінок'!C235&COUNTIF('Відстеження оцінок'!$C$4:C235,'Відстеження оцінок'!C235)","v":"0"}]
[null,233,{"$f":"'Відстеження оцінок'!C236&COUNTIF('Відстеження оцінок'!$C$4:C236,'Відстеження оцінок'!C236)","v":"0"}]
[null,234,{"$f":"'Відстеження оцінок'!C237&COUNTIF('Відстеження оцінок'!$C$4:C237,'Відстеження оцінок'!C237)","v":"0"}]
[null,235,{"$f":"'Відстеження оцінок'!C238&COUNTIF('Відстеження оцінок'!$C$4:C238,'Відстеження оцінок'!C238)","v":"0"}]
[null,236,{"$f":"'Відстеження оцінок'!C239&COUNTIF('Відстеження оцінок'!$C$4:C239,'Відстеження оцінок'!C239)","v":"0"}]
[null,237,{"$f":"'Відстеження оцінок'!C240&COUNTIF('Відстеження оцінок'!$C$4:C240,'Відстеження оцінок'!C240)","v":"0"}]
[null,238,{"$f":"'Відстеження оцінок'!C241&COUNTIF('Відстеження оцінок'!$C$4:C241,'Відстеження оцінок'!C241)","v":"0"}]
[null,239,{"$f":"'Відстеження оцінок'!C242&COUNTIF('Відстеження оцінок'!$C$4:C242,'Відстеження оцінок'!C242)","v":"0"}]
[null,240,{"$f":"'Відстеження оцінок'!C243&COUNTIF('Відстеження оцінок'!$C$4:C243,'Відстеження оцінок'!C243)","v":"0"}]
[null,241,{"$f":"'Відстеження оцінок'!C244&COUNTIF('Відстеження оцінок'!$C$4:C244,'Відстеження оцінок'!C244)","v":"0"}]
[null,242,{"$f":"'Відстеження оцінок'!C245&COUNTIF('Відстеження оцінок'!$C$4:C245,'Відстеження оцінок'!C245)","v":"0"}]
[null,243,{"$f":"'Відстеження оцінок'!C246&COUNTIF('Відстеження оцінок'!$C$4:C246,'Відстеження оцінок'!C246)","v":"0"}]
[null,244,{"$f":"'Відстеження оцінок'!C247&COUNTIF('Відстеження оцінок'!$C$4:C247,'Відстеження оцінок'!C247)","v":"0"}]
[null,245,{"$f":"'Відстеження оцінок'!C248&COUNTIF('Відстеження оцінок'!$C$4:C248,'Відстеження оцінок'!C248)","v":"0"}]
[null,246,{"$f":"'Відстеження оцінок'!C249&COUNTIF('Відстеження оцінок'!$C$4:C249,'Відстеження оцінок'!C249)","v":"0"}]
[null,247,{"$f":"'Відстеження оцінок'!C250&COUNTIF('Відстеження оцінок'!$C$4:C250,'Відстеження оцінок'!C250)","v":"0"}]
[null,248,{"$f":"'Відстеження оцінок'!C251&COUNTIF('Відстеження оцінок'!$C$4:C251,'Відстеження оцінок'!C251)","v":"0"}]
[null,249,{"$f":"'Відстеження оцінок'!C252&COUNTIF('Відстеження оцінок'!$C$4:C252,'Відстеження оцінок'!C252)","v":"0"}]
[null,250,{"$f":"'Відстеження оцінок'!C253&COUNTIF('Відстеження оцінок'!$C$4:C253,'Відстеження оцінок'!C253)","v":"0"}]
[null,251,{"$f":"'Відстеження оцінок'!C254&COUNTIF('Відстеження оцінок'!$C$4:C254,'Відстеження оцінок'!C254)","v":"0"}]
[null,252,{"$f":"'Відстеження оцінок'!C255&COUNTIF('Відстеження оцінок'!$C$4:C255,'Відстеження оцінок'!C255)","v":"0"}]
[null,253,{"$f":"'Відстеження оцінок'!C256&COUNTIF('Відстеження оцінок'!$C$4:C256,'Відстеження оцінок'!C256)","v":"0"}]
[null,254,{"$f":"'Відстеження оцінок'!C257&COUNTIF('Відстеження оцінок'!$C$4:C257,'Відстеження оцінок'!C257)","v":"0"}]
[null,255,{"$f":"'Відстеження оцінок'!C258&COUNTIF('Відстеження оцінок'!$C$4:C258,'Відстеження оцінок'!C258)","v":"0"}]
[null,256,{"$f":"'Відстеження оцінок'!C259&COUNTIF('Відстеження оцінок'!$C$4:C259,'Відстеження оцінок'!C259)","v":"0"}]
[null,257,{"$f":"'Відстеження оцінок'!C260&COUNTIF('Відстеження оцінок'!$C$4:C260,'Відстеження оцінок'!C260)","v":"0"}]
[null,258,{"$f":"'Відстеження оцінок'!C261&COUNTIF('Відстеження оцінок'!$C$4:C261,'Відстеження оцінок'!C261)","v":"0"}]
[null,259,{"$f":"'Відстеження оцінок'!C262&COUNTIF('Відстеження оцінок'!$C$4:C262,'Відстеження оцінок'!C262)","v":"0"}]
[null,260,{"$f":"'Відстеження оцінок'!C263&COUNTIF('Відстеження оцінок'!$C$4:C263,'Відстеження оцінок'!C263)","v":"0"}]
[null,261,{"$f":"'Відстеження оцінок'!C264&COUNTIF('Відстеження оцінок'!$C$4:C264,'Відстеження оцінок'!C264)","v":"0"}]
[null,262,{"$f":"'Відстеження оцінок'!C265&COUNTIF('Відстеження оцінок'!$C$4:C265,'Відстеження оцінок'!C265)","v":"0"}]
[null,263,{"$f":"'Відстеження оцінок'!C266&COUNTIF('Відстеження оцінок'!$C$4:C266,'Відстеження оцінок'!C266)","v":"0"}]
[null,264,{"$f":"'Відстеження оцінок'!C267&COUNTIF('Відстеження оцінок'!$C$4:C267,'Відстеження оцінок'!C267)","v":"0"}]
[null,265,{"$f":"'Відстеження оцінок'!C268&COUNTIF('Відстеження оцінок'!$C$4:C268,'Відстеження оцінок'!C268)","v":"0"}]
[null,266,{"$f":"'Відстеження оцінок'!C269&COUNTIF('Відстеження оцінок'!$C$4:C269,'Відстеження оцінок'!C269)","v":"0"}]
[null,267,{"$f":"'Відстеження оцінок'!C270&COUNTIF('Відстеження оцінок'!$C$4:C270,'Відстеження оцінок'!C270)","v":"0"}]
[null,268,{"$f":"'Відстеження оцінок'!C271&COUNTIF('Відстеження оцінок'!$C$4:C271,'Відстеження оцінок'!C271)","v":"0"}]
[null,269,{"$f":"'Відстеження оцінок'!C272&COUNTIF('Відстеження оцінок'!$C$4:C272,'Відстеження оцінок'!C272)","v":"0"}]
[null,270,{"$f":"'Відстеження оцінок'!C273&COUNTIF('Відстеження оцінок'!$C$4:C273,'Відстеження оцінок'!C273)","v":"0"}]
[null,271,{"$f":"'Відстеження оцінок'!C274&COUNTIF('Відстеження оцінок'!$C$4:C274,'Відстеження оцінок'!C274)","v":"0"}]
[null,272,{"$f":"'Відстеження оцінок'!C275&COUNTIF('Відстеження оцінок'!$C$4:C275,'Відстеження оцінок'!C275)","v":"0"}]
[null,273,{"$f":"'Відстеження оцінок'!C276&COUNTIF('Відстеження оцінок'!$C$4:C276,'Відстеження оцінок'!C276)","v":"0"}]
[null,274,{"$f":"'Відстеження оцінок'!C277&COUNTIF('Відстеження оцінок'!$C$4:C277,'Відстеження оцінок'!C277)","v":"0"}]
[null,275,{"$f":"'Відстеження оцінок'!C278&COUNTIF('Відстеження оцінок'!$C$4:C278,'Відстеження оцінок'!C278)","v":"0"}]
[null,276,{"$f":"'Відстеження оцінок'!C279&COUNTIF('Відстеження оцінок'!$C$4:C279,'Відстеження оцінок'!C279)","v":"0"}]
[null,277,{"$f":"'Відстеження оцінок'!C280&COUNTIF('Відстеження оцінок'!$C$4:C280,'Відстеження оцінок'!C280)","v":"0"}]
[null,278,{"$f":"'Відстеження оцінок'!C281&COUNTIF('Відстеження оцінок'!$C$4:C281,'Відстеження оцінок'!C281)","v":"0"}]
[null,279,{"$f":"'Відстеження оцінок'!C282&COUNTIF('Відстеження оцінок'!$C$4:C282,'Відстеження оцінок'!C282)","v":"0"}]
[null,280,{"$f":"'Відстеження оцінок'!C283&COUNTIF('Відстеження оцінок'!$C$4:C283,'Відстеження оцінок'!C283)","v":"0"}]
[null,281,{"$f":"'Відстеження оцінок'!C284&COUNTIF('Відстеження оцінок'!$C$4:C284,'Відстеження оцінок'!C284)","v":"0"}]
[null,282,{"$f":"'Відстеження оцінок'!C285&COUNTIF('Відстеження оцінок'!$C$4:C285,'Відстеження оцінок'!C285)","v":"0"}]
[null,283,{"$f":"'Відстеження оцінок'!C286&COUNTIF('Відстеження оцінок'!$C$4:C286,'Відстеження оцінок'!C286)","v":"0"}]
[null,284,{"$f":"'Відстеження оцінок'!C287&COUNTIF('Відстеження оцінок'!$C$4:C287,'Відстеження оцінок'!C287)","v":"0"}]
[null,285,{"$f":"'Відстеження оцінок'!C288&COUNTIF('Відстеження оцінок'!$C$4:C288,'Відстеження оцінок'!C288)","v":"0"}]
[null,286,{"$f":"'Відстеження оцінок'!C289&COUNTIF('Відстеження оцінок'!$C$4:C289,'Відстеження оцінок'!C289)","v":"0"}]
[null,287,{"$f":"'Відстеження оцінок'!C290&COUNTIF('Відстеження оцінок'!$C$4:C290,'Відстеження оцінок'!C290)","v":"0"}]
[null,288,{"$f":"'Відстеження оцінок'!C291&COUNTIF('Відстеження оцінок'!$C$4:C291,'Відстеження оцінок'!C291)","v":"0"}]
[null,289,{"$f":"'Відстеження оцінок'!C292&COUNTIF('Відстеження оцінок'!$C$4:C292,'Відстеження оцінок'!C292)","v":"0"}]
[null,290,{"$f":"'Відстеження оцінок'!C293&COUNTIF('Відстеження оцінок'!$C$4:C293,'Відстеження оцінок'!C293)","v":"0"}]
[null,291,{"$f":"'Відстеження оцінок'!C294&COUNTIF('Відстеження оцінок'!$C$4:C294,'Відстеження оцінок'!C294)","v":"0"}]
[null,292,{"$f":"'Відстеження оцінок'!C295&COUNTIF('Відстеження оцінок'!$C$4:C295,'Відстеження оцінок'!C295)","v":"0"}]
[null,293,{"$f":"'Відстеження оцінок'!C296&COUNTIF('Відстеження оцінок'!$C$4:C296,'Відстеження оцінок'!C296)","v":"0"}]
[null,294,{"$f":"'Відстеження оцінок'!C297&COUNTIF('Відстеження оцінок'!$C$4:C297,'Відстеження оцінок'!C297)","v":"0"}]
[null,295,{"$f":"'Відстеження оцінок'!C298&COUNTIF('Відстеження оцінок'!$C$4:C298,'Відстеження оцінок'!C298)","v":"0"}]
[null,296,{"$f":"'Відстеження оцінок'!C299&COUNTIF('Відстеження оцінок'!$C$4:C299,'Відстеження оцінок'!C299)","v":"0"}]
[null,297,{"$f":"'Відстеження оцінок'!C300&COUNTIF('Відстеження оцінок'!$C$4:C300,'Відстеження оцінок'!C300)","v":"0"}]
[null,298,{"$f":"'Відстеження оцінок'!C301&COUNTIF('Відстеження оцінок'!$C$4:C301,'Відстеження оцінок'!C301)","v":"0"}]
[null,299,{"$f":"'Відстеження оцінок'!C302&COUNTIF('Відстеження оцінок'!$C$4:C302,'Відстеження оцінок'!C302)","v":"0"}]
[null,300,{"$f":"'Відстеження оцінок'!C303&COUNTIF('Відстеження оцінок'!$C$4:C303,'Відстеження оцінок'!C303)","v":"0"}]
[null,301,{"$f":"'Відстеження оцінок'!C304&COUNTIF('Відстеження оцінок'!$C$4:C304,'Відстеження оцінок'!C304)","v":"0"}]
[null,302,{"$f":"'Відстеження оцінок'!C305&COUNTIF('Відстеження оцінок'!$C$4:C305,'Відстеження оцінок'!C305)","v":"0"}]
[null,303,{"$f":"'Відстеження оцінок'!C306&COUNTIF('Відстеження оцінок'!$C$4:C306,'Відстеження оцінок'!C306)","v":"0"}]
[null,304,{"$f":"'Відстеження оцінок'!C307&COUNTIF('Відстеження оцінок'!$C$4:C307,'Відстеження оцінок'!C307)","v":"0"}]
[null,305,{"$f":"'Відстеження оцінок'!C308&COUNTIF('Відстеження оцінок'!$C$4:C308,'Відстеження оцінок'!C308)","v":"0"}]
[null,306,{"$f":"'Відстеження оцінок'!C309&COUNTIF('Відстеження оцінок'!$C$4:C309,'Відстеження оцінок'!C309)","v":"0"}]
[null,307,{"$f":"'Відстеження оцінок'!C310&COUNTIF('Відстеження оцінок'!$C$4:C310,'Відстеження оцінок'!C310)","v":"0"}]
[null,308,{"$f":"'Відстеження оцінок'!C311&COUNTIF('Відстеження оцінок'!$C$4:C311,'Відстеження оцінок'!C311)","v":"0"}]
[null,309,{"$f":"'Відстеження оцінок'!C312&COUNTIF('Відстеження оцінок'!$C$4:C312,'Відстеження оцінок'!C312)","v":"0"}]
[null,310,{"$f":"'Відстеження оцінок'!C313&COUNTIF('Відстеження оцінок'!$C$4:C313,'Відстеження оцінок'!C313)","v":"0"}]
[null,311,{"$f":"'Відстеження оцінок'!C314&COUNTIF('Відстеження оцінок'!$C$4:C314,'Відстеження оцінок'!C314)","v":"0"}]
[null,312,{"$f":"'Відстеження оцінок'!C315&COUNTIF('Відстеження оцінок'!$C$4:C315,'Відстеження оцінок'!C315)","v":"0"}]
[null,313,{"$f":"'Відстеження оцінок'!C316&COUNTIF('Відстеження оцінок'!$C$4:C316,'Відстеження оцінок'!C316)","v":"0"}]
[null,314,{"$f":"'Відстеження оцінок'!C317&COUNTIF('Відстеження оцінок'!$C$4:C317,'Відстеження оцінок'!C317)","v":"0"}]
[null,315,{"$f":"'Відстеження оцінок'!C318&COUNTIF('Відстеження оцінок'!$C$4:C318,'Відстеження оцінок'!C318)","v":"0"}]
[null,316,{"$f":"'Відстеження оцінок'!C319&COUNTIF('Відстеження оцінок'!$C$4:C319,'Відстеження оцінок'!C319)","v":"0"}]
[null,317,{"$f":"'Відстеження оцінок'!C320&COUNTIF('Відстеження оцінок'!$C$4:C320,'Відстеження оцінок'!C320)","v":"0"}]
[null,318,{"$f":"'Відстеження оцінок'!C321&COUNTIF('Відстеження оцінок'!$C$4:C321,'Відстеження оцінок'!C321)","v":"0"}]
[null,319,{"$f":"'Відстеження оцінок'!C322&COUNTIF('Відстеження оцінок'!$C$4:C322,'Відстеження оцінок'!C322)","v":"0"}]
[null,320,{"$f":"'Відстеження оцінок'!C323&COUNTIF('Відстеження оцінок'!$C$4:C323,'Відстеження оцінок'!C323)","v":"0"}]
[null,321,{"$f":"'Відстеження оцінок'!C324&COUNTIF('Відстеження оцінок'!$C$4:C324,'Відстеження оцінок'!C324)","v":"0"}]
[null,322,{"$f":"'Відстеження оцінок'!C325&COUNTIF('Відстеження оцінок'!$C$4:C325,'Відстеження оцінок'!C325)","v":"0"}]
[null,323,{"$f":"'Відстеження оцінок'!C326&COUNTIF('Відстеження оцінок'!$C$4:C326,'Відстеження оцінок'!C326)","v":"0"}]
[null,324,{"$f":"'Відстеження оцінок'!C327&COUNTIF('Відстеження оцінок'!$C$4:C327,'Відстеження оцінок'!C327)","v":"0"}]
[null,325,{"$f":"'Відстеження оцінок'!C328&COUNTIF('Відстеження оцінок'!$C$4:C328,'Відстеження оцінок'!C328)","v":"0"}]
[null,326,{"$f":"'Відстеження оцінок'!C329&COUNTIF('Відстеження оцінок'!$C$4:C329,'Відстеження оцінок'!C329)","v":"0"}]
[null,327,{"$f":"'Відстеження оцінок'!C330&COUNTIF('Відстеження оцінок'!$C$4:C330,'Відстеження оцінок'!C330)","v":"0"}]
[null,328,{"$f":"'Відстеження оцінок'!C331&COUNTIF('Відстеження оцінок'!$C$4:C331,'Відстеження оцінок'!C331)","v":"0"}]
[null,329,{"$f":"'Відстеження оцінок'!C332&COUNTIF('Відстеження оцінок'!$C$4:C332,'Відстеження оцінок'!C332)","v":"0"}]
[null,330,{"$f":"'Відстеження оцінок'!C333&COUNTIF('Відстеження оцінок'!$C$4:C333,'Відстеження оцінок'!C333)","v":"0"}]
[null,331,{"$f":"'Відстеження оцінок'!C334&COUNTIF('Відстеження оцінок'!$C$4:C334,'Відстеження оцінок'!C334)","v":"0"}]
[null,332,{"$f":"'Відстеження оцінок'!C335&COUNTIF('Відстеження оцінок'!$C$4:C335,'Відстеження оцінок'!C335)","v":"0"}]
[null,333,{"$f":"'Відстеження оцінок'!C336&COUNTIF('Відстеження оцінок'!$C$4:C336,'Відстеження оцінок'!C336)","v":"0"}]
[null,334,{"$f":"'Відстеження оцінок'!C337&COUNTIF('Відстеження оцінок'!$C$4:C337,'Відстеження оцінок'!C337)","v":"0"}]
[null,335,{"$f":"'Відстеження оцінок'!C338&COUNTIF('Відстеження оцінок'!$C$4:C338,'Відстеження оцінок'!C338)","v":"0"}]
[null,336,{"$f":"'Відстеження оцінок'!C339&COUNTIF('Відстеження оцінок'!$C$4:C339,'Відстеження оцінок'!C339)","v":"0"}]
[null,337,{"$f":"'Відстеження оцінок'!C340&COUNTIF('Відстеження оцінок'!$C$4:C340,'Відстеження оцінок'!C340)","v":"0"}]
[null,338,{"$f":"'Відстеження оцінок'!C341&COUNTIF('Відстеження оцінок'!$C$4:C341,'Відстеження оцінок'!C341)","v":"0"}]
[null,339,{"$f":"'Відстеження оцінок'!C342&COUNTIF('Відстеження оцінок'!$C$4:C342,'Відстеження оцінок'!C342)","v":"0"}]
[null,340,{"$f":"'Відстеження оцінок'!C343&COUNTIF('Відстеження оцінок'!$C$4:C343,'Відстеження оцінок'!C343)","v":"0"}]
[null,341,{"$f":"'Відстеження оцінок'!C344&COUNTIF('Відстеження оцінок'!$C$4:C344,'Відстеження оцінок'!C344)","v":"0"}]
[null,342,{"$f":"'Відстеження оцінок'!C345&COUNTIF('Відстеження оцінок'!$C$4:C345,'Відстеження оцінок'!C345)","v":"0"}]
[null,343,{"$f":"'Відстеження оцінок'!C346&COUNTIF('Відстеження оцінок'!$C$4:C346,'Відстеження оцінок'!C346)","v":"0"}]
[null,344,{"$f":"'Відстеження оцінок'!C347&COUNTIF('Відстеження оцінок'!$C$4:C347,'Відстеження оцінок'!C347)","v":"0"}]
[null,345,{"$f":"'Відстеження оцінок'!C348&COUNTIF('Відстеження оцінок'!$C$4:C348,'Відстеження оцінок'!C348)","v":"0"}]
[null,346,{"$f":"'Відстеження оцінок'!C349&COUNTIF('Відстеження оцінок'!$C$4:C349,'Відстеження оцінок'!C349)","v":"0"}]
[null,347,{"$f":"'Відстеження оцінок'!C350&COUNTIF('Відстеження оцінок'!$C$4:C350,'Відстеження оцінок'!C350)","v":"0"}]
[null,348,{"$f":"'Відстеження оцінок'!C351&COUNTIF('Відстеження оцінок'!$C$4:C351,'Відстеження оцінок'!C351)","v":"0"}]
[null,349,{"$f":"'Відстеження оцінок'!C352&COUNTIF('Відстеження оцінок'!$C$4:C352,'Відстеження оцінок'!C352)","v":"0"}]
[null,350,{"$f":"'Відстеження оцінок'!C353&COUNTIF('Відстеження оцінок'!$C$4:C353,'Відстеження оцінок'!C353)","v":"0"}]
[null,351,{"$f":"'Відстеження оцінок'!C354&COUNTIF('Відстеження оцінок'!$C$4:C354,'Відстеження оцінок'!C354)","v":"0"}]
[null,352,{"$f":"'Відстеження оцінок'!C355&COUNTIF('Відстеження оцінок'!$C$4:C355,'Відстеження оцінок'!C355)","v":"0"}]
[null,353,{"$f":"'Відстеження оцінок'!C356&COUNTIF('Відстеження оцінок'!$C$4:C356,'Відстеження оцінок'!C356)","v":"0"}]
[null,354,{"$f":"'Відстеження оцінок'!C357&COUNTIF('Відстеження оцінок'!$C$4:C357,'Відстеження оцінок'!C357)","v":"0"}]
[null,355,{"$f":"'Відстеження оцінок'!C358&COUNTIF('Відстеження оцінок'!$C$4:C358,'Відстеження оцінок'!C358)","v":"0"}]
[null,356,{"$f":"'Відстеження оцінок'!C359&COUNTIF('Відстеження оцінок'!$C$4:C359,'Відстеження оцінок'!C359)","v":"0"}]
[null,357,{"$f":"'Відстеження оцінок'!C360&COUNTIF('Відстеження оцінок'!$C$4:C360,'Відстеження оцінок'!C360)","v":"0"}]
[null,358,{"$f":"'Відстеження оцінок'!C361&COUNTIF('Відстеження оцінок'!$C$4:C361,'Відстеження оцінок'!C361)","v":"0"}]
[null,359,{"$f":"'Відстеження оцінок'!C362&COUNTIF('Відстеження оцінок'!$C$4:C362,'Відстеження оцінок'!C362)","v":"0"}]
[null,360,{"$f":"'Відстеження оцінок'!C363&COUNTIF('Відстеження оцінок'!$C$4:C363,'Відстеження оцінок'!C363)","v":"0"}]
[null,361,{"$f":"'Відстеження оцінок'!C364&COUNTIF('Відстеження оцінок'!$C$4:C364,'Відстеження оцінок'!C364)","v":"0"}]
[null,362,{"$f":"'Відстеження оцінок'!C365&COUNTIF('Відстеження оцінок'!$C$4:C365,'Відстеження оцінок'!C365)","v":"0"}]
[null,363,{"$f":"'Відстеження оцінок'!C366&COUNTIF('Відстеження оцінок'!$C$4:C366,'Відстеження оцінок'!C366)","v":"0"}]
[null,364,{"$f":"'Відстеження оцінок'!C367&COUNTIF('Відстеження оцінок'!$C$4:C367,'Відстеження оцінок'!C367)","v":"0"}]
[null,365,{"$f":"'Відстеження оцінок'!C368&COUNTIF('Відстеження оцінок'!$C$4:C368,'Відстеження оцінок'!C368)","v":"0"}]
[null,366,{"$f":"'Відстеження оцінок'!C369&COUNTIF('Відстеження оцінок'!$C$4:C369,'Відстеження оцінок'!C369)","v":"0"}]
[null,367,{"$f":"'Відстеження оцінок'!C370&COUNTIF('Відстеження оцінок'!$C$4:C370,'Відстеження оцінок'!C370)","v":"0"}]
[null,368,{"$f":"'Відстеження оцінок'!C371&COUNTIF('Відстеження оцінок'!$C$4:C371,'Відстеження оцінок'!C371)","v":"0"}]
[null,369,{"$f":"'Відстеження оцінок'!C372&COUNTIF('Відстеження оцінок'!$C$4:C372,'Відстеження оцінок'!C372)","v":"0"}]
[null,370,{"$f":"'Відстеження оцінок'!C373&COUNTIF('Відстеження оцінок'!$C$4:C373,'Відстеження оцінок'!C373)","v":"0"}]
[null,371,{"$f":"'Відстеження оцінок'!C374&COUNTIF('Відстеження оцінок'!$C$4:C374,'Відстеження оцінок'!C374)","v":"0"}]
[null,372,{"$f":"'Відстеження оцінок'!C375&COUNTIF('Відстеження оцінок'!$C$4:C375,'Відстеження оцінок'!C375)","v":"0"}]
[null,373,{"$f":"'Відстеження оцінок'!C376&COUNTIF('Відстеження оцінок'!$C$4:C376,'Відстеження оцінок'!C376)","v":"0"}]
[null,374,{"$f":"'Відстеження оцінок'!C377&COUNTIF('Відстеження оцінок'!$C$4:C377,'Відстеження оцінок'!C377)","v":"0"}]
[null,375,{"$f":"'Відстеження оцінок'!C378&COUNTIF('Відстеження оцінок'!$C$4:C378,'Відстеження оцінок'!C378)","v":"0"}]
[null,376,{"$f":"'Відстеження оцінок'!C379&COUNTIF('Відстеження оцінок'!$C$4:C379,'Відстеження оцінок'!C379)","v":"0"}]
[null,377,{"$f":"'Відстеження оцінок'!C380&COUNTIF('Відстеження оцінок'!$C$4:C380,'Відстеження оцінок'!C380)","v":"0"}]
[null,378,{"$f":"'Відстеження оцінок'!C381&COUNTIF('Відстеження оцінок'!$C$4:C381,'Відстеження оцінок'!C381)","v":"0"}]
[null,379,{"$f":"'Відстеження оцінок'!C382&COUNTIF('Відстеження оцінок'!$C$4:C382,'Відстеження оцінок'!C382)","v":"0"}]
[null,380,{"$f":"'Відстеження оцінок'!C383&COUNTIF('Відстеження оцінок'!$C$4:C383,'Відстеження оцінок'!C383)","v":"0"}]
[null,381,{"$f":"'Відстеження оцінок'!C384&COUNTIF('Відстеження оцінок'!$C$4:C384,'Відстеження оцінок'!C384)","v":"0"}]
[null,382,{"$f":"'Відстеження оцінок'!C385&COUNTIF('Відстеження оцінок'!$C$4:C385,'Відстеження оцінок'!C385)","v":"0"}]
[null,383,{"$f":"'Відстеження оцінок'!C386&COUNTIF('Відстеження оцінок'!$C$4:C386,'Відстеження оцінок'!C386)","v":"0"}]
[null,384,{"$f":"'Відстеження оцінок'!C387&COUNTIF('Відстеження оцінок'!$C$4:C387,'Відстеження оцінок'!C387)","v":"0"}]
[null,385,{"$f":"'Відстеження оцінок'!C388&COUNTIF('Відстеження оцінок'!$C$4:C388,'Відстеження оцінок'!C388)","v":"0"}]
[null,386,{"$f":"'Відстеження оцінок'!C389&COUNTIF('Відстеження оцінок'!$C$4:C389,'Відстеження оцінок'!C389)","v":"0"}]
[null,387,{"$f":"'Відстеження оцінок'!C390&COUNTIF('Відстеження оцінок'!$C$4:C390,'Відстеження оцінок'!C390)","v":"0"}]
[null,388,{"$f":"'Відстеження оцінок'!C391&COUNTIF('Відстеження оцінок'!$C$4:C391,'Відстеження оцінок'!C391)","v":"0"}]
[null,389,{"$f":"'Відстеження оцінок'!C392&COUNTIF('Відстеження оцінок'!$C$4:C392,'Відстеження оцінок'!C392)","v":"0"}]
[null,390,{"$f":"'Відстеження оцінок'!C393&COUNTIF('Відстеження оцінок'!$C$4:C393,'Відстеження оцінок'!C393)","v":"0"}]
[null,391,{"$f":"'Відстеження оцінок'!C394&COUNTIF('Відстеження оцінок'!$C$4:C394,'Відстеження оцінок'!C394)","v":"0"}]
[null,392,{"$f":"'Відстеження оцінок'!C395&COUNTIF('Відстеження оцінок'!$C$4:C395,'Відстеження оцінок'!C395)","v":"0"}]
[null,393,{"$f":"'Відстеження оцінок'!C396&COUNTIF('Відстеження оцінок'!$C$4:C396,'Відстеження оцінок'!C396)","v":"0"}]
[null,394,{"$f":"'Відстеження оцінок'!C397&COUNTIF('Відстеження оцінок'!$C$4:C397,'Відстеження оцінок'!C397)","v":"0"}]
[null,395,{"$f":"'Відстеження оцінок'!C398&COUNTIF('Відстеження оцінок'!$C$4:C398,'Відстеження оцінок'!C398)","v":"0"}]
[null,396,{"$f":"'Відстеження оцінок'!C399&COUNTIF('Відстеження оцінок'!$C$4:C399,'Відстеження оцінок'!C399)","v":"0"}]
[null,397,{"$f":"'Відстеження оцінок'!C400&COUNTIF('Відстеження оцінок'!$C$4:C400,'Відстеження оцінок'!C400)","v":"0"}]
[null,398,{"$f":"'Відстеження оцінок'!C401&COUNTIF('Відстеження оцінок'!$C$4:C401,'Відстеження оцінок'!C401)","v":"0"}]
[null,399,{"$f":"'Відстеження оцінок'!C402&COUNTIF('Відстеження оцінок'!$C$4:C402,'Відстеження оцінок'!C402)","v":"0"}]
[null,400,{"$f":"'Відстеження оцінок'!C403&COUNTIF('Відстеження оцінок'!$C$4:C403,'Відстеження оцінок'!C403)","v":"0"}]
[null,401,{"$f":"'Відстеження оцінок'!C404&COUNTIF('Відстеження оцінок'!$C$4:C404,'Відстеження оцінок'!C404)","v":"0"}]
[null,402,{"$f":"'Відстеження оцінок'!C405&COUNTIF('Відстеження оцінок'!$C$4:C405,'Відстеження оцінок'!C405)","v":"0"}]
[null,403,{"$f":"'Відстеження оцінок'!C406&COUNTIF('Відстеження оцінок'!$C$4:C406,'Відстеження оцінок'!C406)","v":"0"}]
[null,404,{"$f":"'Відстеження оцінок'!C407&COUNTIF('Відстеження оцінок'!$C$4:C407,'Відстеження оцінок'!C407)","v":"0"}]
[null,405,{"$f":"'Відстеження оцінок'!C408&COUNTIF('Відстеження оцінок'!$C$4:C408,'Відстеження оцінок'!C408)","v":"0"}]
[null,406,{"$f":"'Відстеження оцінок'!C409&COUNTIF('Відстеження оцінок'!$C$4:C409,'Відстеження оцінок'!C409)","v":"0"}]
[null,407,{"$f":"'Відстеження оцінок'!C410&COUNTIF('Відстеження оцінок'!$C$4:C410,'Відстеження оцінок'!C410)","v":"0"}]
[null,408,{"$f":"'Відстеження оцінок'!C411&COUNTIF('Відстеження оцінок'!$C$4:C411,'Відстеження оцінок'!C411)","v":"0"}]
[null,409,{"$f":"'Відстеження оцінок'!C412&COUNTIF('Відстеження оцінок'!$C$4:C412,'Відстеження оцінок'!C412)","v":"0"}]
[null,410,{"$f":"'Відстеження оцінок'!C413&COUNTIF('Відстеження оцінок'!$C$4:C413,'Відстеження оцінок'!C413)","v":"0"}]
[null,411,{"$f":"'Відстеження оцінок'!C414&COUNTIF('Відстеження оцінок'!$C$4:C414,'Відстеження оцінок'!C414)","v":"0"}]
[null,412,{"$f":"'Відстеження оцінок'!C415&COUNTIF('Відстеження оцінок'!$C$4:C415,'Відстеження оцінок'!C415)","v":"0"}]
[null,413,{"$f":"'Відстеження оцінок'!C416&COUNTIF('Відстеження оцінок'!$C$4:C416,'Відстеження оцінок'!C416)","v":"0"}]
[null,414,{"$f":"'Відстеження оцінок'!C417&COUNTIF('Відстеження оцінок'!$C$4:C417,'Відстеження оцінок'!C417)","v":"0"}]
[null,415,{"$f":"'Відстеження оцінок'!C418&COUNTIF('Відстеження оцінок'!$C$4:C418,'Відстеження оцінок'!C418)","v":"0"}]
[null,416,{"$f":"'Відстеження оцінок'!C419&COUNTIF('Відстеження оцінок'!$C$4:C419,'Відстеження оцінок'!C419)","v":"0"}]
[null,417,{"$f":"'Відстеження оцінок'!C420&COUNTIF('Відстеження оцінок'!$C$4:C420,'Відстеження оцінок'!C420)","v":"0"}]
[null,418,{"$f":"'Відстеження оцінок'!C421&COUNTIF('Відстеження оцінок'!$C$4:C421,'Відстеження оцінок'!C421)","v":"0"}]
[null,419,{"$f":"'Відстеження оцінок'!C422&COUNTIF('Відстеження оцінок'!$C$4:C422,'Відстеження оцінок'!C422)","v":"0"}]
[null,420,{"$f":"'Відстеження оцінок'!C423&COUNTIF('Відстеження оцінок'!$C$4:C423,'Відстеження оцінок'!C423)","v":"0"}]
[null,421,{"$f":"'Відстеження оцінок'!C424&COUNTIF('Відстеження оцінок'!$C$4:C424,'Відстеження оцінок'!C424)","v":"0"}]
[null,422,{"$f":"'Відстеження оцінок'!C425&COUNTIF('Відстеження оцінок'!$C$4:C425,'Відстеження оцінок'!C425)","v":"0"}]
[null,423,{"$f":"'Відстеження оцінок'!C426&COUNTIF('Відстеження оцінок'!$C$4:C426,'Відстеження оцінок'!C426)","v":"0"}]
[null,424,{"$f":"'Відстеження оцінок'!C427&COUNTIF('Відстеження оцінок'!$C$4:C427,'Відстеження оцінок'!C427)","v":"0"}]
[null,425,{"$f":"'Відстеження оцінок'!C428&COUNTIF('Відстеження оцінок'!$C$4:C428,'Відстеження оцінок'!C428)","v":"0"}]
[null,426,{"$f":"'Відстеження оцінок'!C429&COUNTIF('Відстеження оцінок'!$C$4:C429,'Відстеження оцінок'!C429)","v":"0"}]
[null,427,{"$f":"'Відстеження оцінок'!C430&COUNTIF('Відстеження оцінок'!$C$4:C430,'Відстеження оцінок'!C430)","v":"0"}]
[null,428,{"$f":"'Відстеження оцінок'!C431&COUNTIF('Відстеження оцінок'!$C$4:C431,'Відстеження оцінок'!C431)","v":"0"}]
[null,429,{"$f":"'Відстеження оцінок'!C432&COUNTIF('Відстеження оцінок'!$C$4:C432,'Відстеження оцінок'!C432)","v":"0"}]
[null,430,{"$f":"'Відстеження оцінок'!C433&COUNTIF('Відстеження оцінок'!$C$4:C433,'Відстеження оцінок'!C433)","v":"0"}]
[null,431,{"$f":"'Відстеження оцінок'!C434&COUNTIF('Відстеження оцінок'!$C$4:C434,'Відстеження оцінок'!C434)","v":"0"}]
[null,432,{"$f":"'Відстеження оцінок'!C435&COUNTIF('Відстеження оцінок'!$C$4:C435,'Відстеження оцінок'!C435)","v":"0"}]
[null,433,{"$f":"'Відстеження оцінок'!C436&COUNTIF('Відстеження оцінок'!$C$4:C436,'Відстеження оцінок'!C436)","v":"0"}]
[null,434,{"$f":"'Відстеження оцінок'!C437&COUNTIF('Відстеження оцінок'!$C$4:C437,'Відстеження оцінок'!C437)","v":"0"}]
[null,435,{"$f":"'Відстеження оцінок'!C438&COUNTIF('Відстеження оцінок'!$C$4:C438,'Відстеження оцінок'!C438)","v":"0"}]
[null,436,{"$f":"'Відстеження оцінок'!C439&COUNTIF('Відстеження оцінок'!$C$4:C439,'Відстеження оцінок'!C439)","v":"0"}]
[null,437,{"$f":"'Відстеження оцінок'!C440&COUNTIF('Відстеження оцінок'!$C$4:C440,'Відстеження оцінок'!C440)","v":"0"}]
[null,438,{"$f":"'Відстеження оцінок'!C441&COUNTIF('Відстеження оцінок'!$C$4:C441,'Відстеження оцінок'!C441)","v":"0"}]
[null,439,{"$f":"'Відстеження оцінок'!C442&COUNTIF('Відстеження оцінок'!$C$4:C442,'Відстеження оцінок'!C442)","v":"0"}]
[null,440,{"$f":"'Відстеження оцінок'!C443&COUNTIF('Відстеження оцінок'!$C$4:C443,'Відстеження оцінок'!C443)","v":"0"}]
[null,441,{"$f":"'Відстеження оцінок'!C444&COUNTIF('Відстеження оцінок'!$C$4:C444,'Відстеження оцінок'!C444)","v":"0"}]
[null,442,{"$f":"'Відстеження оцінок'!C445&COUNTIF('Відстеження оцінок'!$C$4:C445,'Відстеження оцінок'!C445)","v":"0"}]
[null,443,{"$f":"'Відстеження оцінок'!C446&COUNTIF('Відстеження оцінок'!$C$4:C446,'Відстеження оцінок'!C446)","v":"0"}]
[null,444,{"$f":"'Відстеження оцінок'!C447&COUNTIF('Відстеження оцінок'!$C$4:C447,'Відстеження оцінок'!C447)","v":"0"}]
[null,445,{"$f":"'Відстеження оцінок'!C448&COUNTIF('Відстеження оцінок'!$C$4:C448,'Відстеження оцінок'!C448)","v":"0"}]
[null,446,{"$f":"'Відстеження оцінок'!C449&COUNTIF('Відстеження оцінок'!$C$4:C449,'Відстеження оцінок'!C449)","v":"0"}]
[null,447,{"$f":"'Відстеження оцінок'!C450&COUNTIF('Відстеження оцінок'!$C$4:C450,'Відстеження оцінок'!C450)","v":"0"}]
[null,448,{"$f":"'Відстеження оцінок'!C451&COUNTIF('Відстеження оцінок'!$C$4:C451,'Відстеження оцінок'!C451)","v":"0"}]
[null,449,{"$f":"'Відстеження оцінок'!C452&COUNTIF('Відстеження оцінок'!$C$4:C452,'Відстеження оцінок'!C452)","v":"0"}]
[null,450,{"$f":"'Відстеження оцінок'!C453&COUNTIF('Відстеження оцінок'!$C$4:C453,'Відстеження оцінок'!C453)","v":"0"}]
[null,451,{"$f":"'Відстеження оцінок'!C454&COUNTIF('Відстеження оцінок'!$C$4:C454,'Відстеження оцінок'!C454)","v":"0"}]
[null,452,{"$f":"'Відстеження оцінок'!C455&COUNTIF('Відстеження оцінок'!$C$4:C455,'Відстеження оцінок'!C455)","v":"0"}]
[null,453,{"$f":"'Відстеження оцінок'!C456&COUNTIF('Відстеження оцінок'!$C$4:C456,'Відстеження оцінок'!C456)","v":"0"}]
[null,454,{"$f":"'Відстеження оцінок'!C457&COUNTIF('Відстеження оцінок'!$C$4:C457,'Відстеження оцінок'!C457)","v":"0"}]
[null,455,{"$f":"'Відстеження оцінок'!C458&COUNTIF('Відстеження оцінок'!$C$4:C458,'Відстеження оцінок'!C458)","v":"0"}]
[null,456,{"$f":"'Відстеження оцінок'!C459&COUNTIF('Відстеження оцінок'!$C$4:C459,'Відстеження оцінок'!C459)","v":"0"}]
[null,457,{"$f":"'Відстеження оцінок'!C460&COUNTIF('Відстеження оцінок'!$C$4:C460,'Відстеження оцінок'!C460)","v":"0"}]
[null,458,{"$f":"'Відстеження оцінок'!C461&COUNTIF('Відстеження оцінок'!$C$4:C461,'Відстеження оцінок'!C461)","v":"0"}]
[null,459,{"$f":"'Відстеження оцінок'!C462&COUNTIF('Відстеження оцінок'!$C$4:C462,'Відстеження оцінок'!C462)","v":"0"}]
[null,460,{"$f":"'Відстеження оцінок'!C463&COUNTIF('Відстеження оцінок'!$C$4:C463,'Відстеження оцінок'!C463)","v":"0"}]
[null,461,{"$f":"'Відстеження оцінок'!C464&COUNTIF('Відстеження оцінок'!$C$4:C464,'Відстеження оцінок'!C464)","v":"0"}]
[null,462,{"$f":"'Відстеження оцінок'!C465&COUNTIF('Відстеження оцінок'!$C$4:C465,'Відстеження оцінок'!C465)","v":"0"}]
[null,463,{"$f":"'Відстеження оцінок'!C466&COUNTIF('Відстеження оцінок'!$C$4:C466,'Відстеження оцінок'!C466)","v":"0"}]
[null,464,{"$f":"'Відстеження оцінок'!C467&COUNTIF('Відстеження оцінок'!$C$4:C467,'Відстеження оцінок'!C467)","v":"0"}]
[null,465,{"$f":"'Відстеження оцінок'!C468&COUNTIF('Відстеження оцінок'!$C$4:C468,'Відстеження оцінок'!C468)","v":"0"}]
[null,466,{"$f":"'Відстеження оцінок'!C469&COUNTIF('Відстеження оцінок'!$C$4:C469,'Відстеження оцінок'!C469)","v":"0"}]
[null,467,{"$f":"'Відстеження оцінок'!C470&COUNTIF('Відстеження оцінок'!$C$4:C470,'Відстеження оцінок'!C470)","v":"0"}]
[null,468,{"$f":"'Відстеження оцінок'!C471&COUNTIF('Відстеження оцінок'!$C$4:C471,'Відстеження оцінок'!C471)","v":"0"}]
[null,469,{"$f":"'Відстеження оцінок'!C472&COUNTIF('Відстеження оцінок'!$C$4:C472,'Відстеження оцінок'!C472)","v":"0"}]
[null,470,{"$f":"'Відстеження оцінок'!C473&COUNTIF('Відстеження оцінок'!$C$4:C473,'Відстеження оцінок'!C473)","v":"0"}]
[null,471,{"$f":"'Відстеження оцінок'!C474&COUNTIF('Відстеження оцінок'!$C$4:C474,'Відстеження оцінок'!C474)","v":"0"}]
[null,472,{"$f":"'Відстеження оцінок'!C475&COUNTIF('Відстеження оцінок'!$C$4:C475,'Відстеження оцінок'!C475)","v":"0"}]
[null,473,{"$f":"'Відстеження оцінок'!C476&COUNTIF('Відстеження оцінок'!$C$4:C476,'Відстеження оцінок'!C476)","v":"0"}]
[null,474,{"$f":"'Відстеження оцінок'!C477&COUNTIF('Відстеження оцінок'!$C$4:C477,'Відстеження оцінок'!C477)","v":"0"}]
[null,475,{"$f":"'Відстеження оцінок'!C478&COUNTIF('Відстеження оцінок'!$C$4:C478,'Відстеження оцінок'!C478)","v":"0"}]
[null,476,{"$f":"'Відстеження оцінок'!C479&COUNTIF('Відстеження оцінок'!$C$4:C479,'Відстеження оцінок'!C479)","v":"0"}]
[null,477,{"$f":"'Відстеження оцінок'!C480&COUNTIF('Відстеження оцінок'!$C$4:C480,'Відстеження оцінок'!C480)","v":"0"}]
[null,478,{"$f":"'Відстеження оцінок'!C481&COUNTIF('Відстеження оцінок'!$C$4:C481,'Відстеження оцінок'!C481)","v":"0"}]
[null,479,{"$f":"'Відстеження оцінок'!C482&COUNTIF('Відстеження оцінок'!$C$4:C482,'Відстеження оцінок'!C482)","v":"0"}]
[null,480,{"$f":"'Відстеження оцінок'!C483&COUNTIF('Відстеження оцінок'!$C$4:C483,'Відстеження оцінок'!C483)","v":"0"}]
[null,481,{"$f":"'Відстеження оцінок'!C484&COUNTIF('Відстеження оцінок'!$C$4:C484,'Відстеження оцінок'!C484)","v":"0"}]
[null,482,{"$f":"'Відстеження оцінок'!C485&COUNTIF('Відстеження оцінок'!$C$4:C485,'Відстеження оцінок'!C485)","v":"0"}]
[null,483,{"$f":"'Відстеження оцінок'!C486&COUNTIF('Відстеження оцінок'!$C$4:C486,'Відстеження оцінок'!C486)","v":"0"}]
[null,484,{"$f":"'Відстеження оцінок'!C487&COUNTIF('Відстеження оцінок'!$C$4:C487,'Відстеження оцінок'!C487)","v":"0"}]
[null,485,{"$f":"'Відстеження оцінок'!C488&COUNTIF('Відстеження оцінок'!$C$4:C488,'Відстеження оцінок'!C488)","v":"0"}]
[null,486,{"$f":"'Відстеження оцінок'!C489&COUNTIF('Відстеження оцінок'!$C$4:C489,'Відстеження оцінок'!C489)","v":"0"}]
[null,487,{"$f":"'Відстеження оцінок'!C490&COUNTIF('Відстеження оцінок'!$C$4:C490,'Відстеження оцінок'!C490)","v":"0"}]
[null,488,{"$f":"'Відстеження оцінок'!C491&COUNTIF('Відстеження оцінок'!$C$4:C491,'Відстеження оцінок'!C491)","v":"0"}]
[null,489,{"$f":"'Відстеження оцінок'!C492&COUNTIF('Відстеження оцінок'!$C$4:C492,'Відстеження оцінок'!C492)","v":"0"}]
[null,490,{"$f":"'Відстеження оцінок'!C493&COUNTIF('Відстеження оцінок'!$C$4:C493,'Відстеження оцінок'!C493)","v":"0"}]
[null,491,{"$f":"'Відстеження оцінок'!C494&COUNTIF('Відстеження оцінок'!$C$4:C494,'Відстеження оцінок'!C494)","v":"0"}]
[null,492,{"$f":"'Відстеження оцінок'!C495&COUNTIF('Відстеження оцінок'!$C$4:C495,'Відстеження оцінок'!C495)","v":"0"}]
[null,493,{"$f":"'Відстеження оцінок'!C496&COUNTIF('Відстеження оцінок'!$C$4:C496,'Відстеження оцінок'!C496)","v":"0"}]
[null,494,{"$f":"'Відстеження оцінок'!C497&COUNTIF('Відстеження оцінок'!$C$4:C497,'Відстеження оцінок'!C497)","v":"0"}]
[null,495,{"$f":"'Відстеження оцінок'!C498&COUNTIF('Відстеження оцінок'!$C$4:C498,'Відстеження оцінок'!C498)","v":"0"}]
[null,496,{"$f":"'Відстеження оцінок'!C499&COUNTIF('Відстеження оцінок'!$C$4:C499,'Відстеження оцінок'!C499)","v":"0"}]
[null,497,{"$f":"'Відстеження оцінок'!C500&COUNTIF('Відстеження оцінок'!$C$4:C500,'Відстеження оцінок'!C500)","v":"0"}]
[null,498,{"$f":"'Відстеження оцінок'!C501&COUNTIF('Відстеження оцінок'!$C$4:C501,'Відстеження оцінок'!C501)","v":"0"}]
[null,499,{"$f":"'Відстеження оцінок'!C502&COUNTIF('Відстеження оцінок'!$C$4:C502,'Відстеження оцінок'!C502)","v":"0"}]
[null,500,{"$f":"'Відстеження оцінок'!C503&COUNTIF('Відстеження оцінок'!$C$4:C503,'Відстеження оцінок'!C503)","v":"0"}]
[null,501,{"$f":"'Відстеження оцінок'!C504&COUNTIF('Відстеження оцінок'!$C$4:C504,'Відстеження оцінок'!C504)","v":"0"}]
[null,502,{"$f":"'Відстеження оцінок'!C505&COUNTIF('Відстеження оцінок'!$C$4:C505,'Відстеження оцінок'!C505)","v":"0"}]
[null,503,{"$f":"'Відстеження оцінок'!C506&COUNTIF('Відстеження оцінок'!$C$4:C506,'Відстеження оцінок'!C506)","v":"0"}]
[null,504,{"$f":"'Відстеження оцінок'!C507&COUNTIF('Відстеження оцінок'!$C$4:C507,'Відстеження оцінок'!C507)","v":"0"}]
[null,505,{"$f":"'Відстеження оцінок'!C508&COUNTIF('Відстеження оцінок'!$C$4:C508,'Відстеження оцінок'!C508)","v":"0"}]
[null,506,{"$f":"'Відстеження оцінок'!C509&COUNTIF('Відстеження оцінок'!$C$4:C509,'Відстеження оцінок'!C509)","v":"0"}]
[null,507,{"$f":"'Відстеження оцінок'!C510&COUNTIF('Відстеження оцінок'!$C$4:C510,'Відстеження оцінок'!C510)","v":"0"}]
[null,508,{"$f":"'Відстеження оцінок'!C511&COUNTIF('Відстеження оцінок'!$C$4:C511,'Відстеження оцінок'!C511)","v":"0"}]
[null,509,{"$f":"'Відстеження оцінок'!C512&COUNTIF('Відстеження оцінок'!$C$4:C512,'Відстеження оцінок'!C512)","v":"0"}]
[null,510,{"$f":"'Відстеження оцінок'!C513&COUNTIF('Відстеження оцінок'!$C$4:C513,'Відстеження оцінок'!C513)","v":"0"}]
[null,511,{"$f":"'Відстеження оцінок'!C514&COUNTIF('Відстеження оцінок'!$C$4:C514,'Відстеження оцінок'!C514)","v":"0"}]
[null,512,{"$f":"'Відстеження оцінок'!C515&COUNTIF('Відстеження оцінок'!$C$4:C515,'Відстеження оцінок'!C515)","v":"0"}]
[null,513,{"$f":"'Відстеження оцінок'!C516&COUNTIF('Відстеження оцінок'!$C$4:C516,'Відстеження оцінок'!C516)","v":"0"}]
[null,514,{"$f":"'Відстеження оцінок'!C517&COUNTIF('Відстеження оцінок'!$C$4:C517,'Відстеження оцінок'!C517)","v":"0"}]
[null,515,{"$f":"'Відстеження оцінок'!C518&COUNTIF('Відстеження оцінок'!$C$4:C518,'Відстеження оцінок'!C518)","v":"0"}]
[null,516,{"$f":"'Відстеження оцінок'!C519&COUNTIF('Відстеження оцінок'!$C$4:C519,'Відстеження оцінок'!C519)","v":"0"}]
[null,517,{"$f":"'Відстеження оцінок'!C520&COUNTIF('Відстеження оцінок'!$C$4:C520,'Відстеження оцінок'!C520)","v":"0"}]
[null,518,{"$f":"'Відстеження оцінок'!C521&COUNTIF('Відстеження оцінок'!$C$4:C521,'Відстеження оцінок'!C521)","v":"0"}]
[null,519,{"$f":"'Відстеження оцінок'!C522&COUNTIF('Відстеження оцінок'!$C$4:C522,'Відстеження оцінок'!C522)","v":"0"}]
[null,520,{"$f":"'Відстеження оцінок'!C523&COUNTIF('Відстеження оцінок'!$C$4:C523,'Відстеження оцінок'!C523)","v":"0"}]
[null,521,{"$f":"'Відстеження оцінок'!C524&COUNTIF('Відстеження оцінок'!$C$4:C524,'Відстеження оцінок'!C524)","v":"0"}]
[null,522,{"$f":"'Відстеження оцінок'!C525&COUNTIF('Відстеження оцінок'!$C$4:C525,'Відстеження оцінок'!C525)","v":"0"}]
[null,523,{"$f":"'Відстеження оцінок'!C526&COUNTIF('Відстеження оцінок'!$C$4:C526,'Відстеження оцінок'!C526)","v":"0"}]
[null,524,{"$f":"'Відстеження оцінок'!C527&COUNTIF('Відстеження оцінок'!$C$4:C527,'Відстеження оцінок'!C527)","v":"0"}]
[null,525,{"$f":"'Відстеження оцінок'!C528&COUNTIF('Відстеження оцінок'!$C$4:C528,'Відстеження оцінок'!C528)","v":"0"}]
[null,526,{"$f":"'Відстеження оцінок'!C529&COUNTIF('Відстеження оцінок'!$C$4:C529,'Відстеження оцінок'!C529)","v":"0"}]
[null,527,{"$f":"'Відстеження оцінок'!C530&COUNTIF('Відстеження оцінок'!$C$4:C530,'Відстеження оцінок'!C530)","v":"0"}]
[null,528,{"$f":"'Відстеження оцінок'!C531&COUNTIF('Відстеження оцінок'!$C$4:C531,'Відстеження оцінок'!C531)","v":"0"}]
[null,529,{"$f":"'Відстеження оцінок'!C532&COUNTIF('Відстеження оцінок'!$C$4:C532,'Відстеження оцінок'!C532)","v":"0"}]
[null,530,{"$f":"'Відстеження оцінок'!C533&COUNTIF('Відстеження оцінок'!$C$4:C533,'Відстеження оцінок'!C533)","v":"0"}]
[null,531,{"$f":"'Відстеження оцінок'!C534&COUNTIF('Відстеження оцінок'!$C$4:C534,'Відстеження оцінок'!C534)","v":"0"}]
[null,532,{"$f":"'Відстеження оцінок'!C535&COUNTIF('Відстеження оцінок'!$C$4:C535,'Відстеження оцінок'!C535)","v":"0"}]
[null,533,{"$f":"'Відстеження оцінок'!C536&COUNTIF('Відстеження оцінок'!$C$4:C536,'Відстеження оцінок'!C536)","v":"0"}]
[null,534,{"$f":"'Відстеження оцінок'!C537&COUNTIF('Відстеження оцінок'!$C$4:C537,'Відстеження оцінок'!C537)","v":"0"}]
[null,535,{"$f":"'Відстеження оцінок'!C538&COUNTIF('Відстеження оцінок'!$C$4:C538,'Відстеження оцінок'!C538)","v":"0"}]
[null,536,{"$f":"'Відстеження оцінок'!C539&COUNTIF('Відстеження оцінок'!$C$4:C539,'Відстеження оцінок'!C539)","v":"0"}]
[null,537,{"$f":"'Відстеження оцінок'!C540&COUNTIF('Відстеження оцінок'!$C$4:C540,'Відстеження оцінок'!C540)","v":"0"}]
[null,538,{"$f":"'Відстеження оцінок'!C541&COUNTIF('Відстеження оцінок'!$C$4:C541,'Відстеження оцінок'!C541)","v":"0"}]
[null,539,{"$f":"'Відстеження оцінок'!C542&COUNTIF('Відстеження оцінок'!$C$4:C542,'Відстеження оцінок'!C542)","v":"0"}]
[null,540,{"$f":"'Відстеження оцінок'!C543&COUNTIF('Відстеження оцінок'!$C$4:C543,'Відстеження оцінок'!C543)","v":"0"}]
[null,541,{"$f":"'Відстеження оцінок'!C544&COUNTIF('Відстеження оцінок'!$C$4:C544,'Відстеження оцінок'!C544)","v":"0"}]
[null,542,{"$f":"'Відстеження оцінок'!C545&COUNTIF('Відстеження оцінок'!$C$4:C545,'Відстеження оцінок'!C545)","v":"0"}]
[null,543,{"$f":"'Відстеження оцінок'!C546&COUNTIF('Відстеження оцінок'!$C$4:C546,'Відстеження оцінок'!C546)","v":"0"}]
[null,544,{"$f":"'Відстеження оцінок'!C547&COUNTIF('Відстеження оцінок'!$C$4:C547,'Відстеження оцінок'!C547)","v":"0"}]
[null,545,{"$f":"'Відстеження оцінок'!C548&COUNTIF('Відстеження оцінок'!$C$4:C548,'Відстеження оцінок'!C548)","v":"0"}]
[null,546,{"$f":"'Відстеження оцінок'!C549&COUNTIF('Відстеження оцінок'!$C$4:C549,'Відстеження оцінок'!C549)","v":"0"}]
[null,547,{"$f":"'Відстеження оцінок'!C550&COUNTIF('Відстеження оцінок'!$C$4:C550,'Відстеження оцінок'!C550)","v":"0"}]
[null,548,{"$f":"'Відстеження оцінок'!C551&COUNTIF('Відстеження оцінок'!$C$4:C551,'Відстеження оцінок'!C551)","v":"0"}]
[null,549,{"$f":"'Відстеження оцінок'!C552&COUNTIF('Відстеження оцінок'!$C$4:C552,'Відстеження оцінок'!C552)","v":"0"}]
[null,550,{"$f":"'Відстеження оцінок'!C553&COUNTIF('Відстеження оцінок'!$C$4:C553,'Відстеження оцінок'!C553)","v":"0"}]
[null,551,{"$f":"'Відстеження оцінок'!C554&COUNTIF('Відстеження оцінок'!$C$4:C554,'Відстеження оцінок'!C554)","v":"0"}]
[null,552,{"$f":"'Відстеження оцінок'!C555&COUNTIF('Відстеження оцінок'!$C$4:C555,'Відстеження оцінок'!C555)","v":"0"}]
[null,553,{"$f":"'Відстеження оцінок'!C556&COUNTIF('Відстеження оцінок'!$C$4:C556,'Відстеження оцінок'!C556)","v":"0"}]
[null,554,{"$f":"'Відстеження оцінок'!C557&COUNTIF('Відстеження оцінок'!$C$4:C557,'Відстеження оцінок'!C557)","v":"0"}]
[null,555,{"$f":"'Відстеження оцінок'!C558&COUNTIF('Відстеження оцінок'!$C$4:C558,'Відстеження оцінок'!C558)","v":"0"}]
[null,556,{"$f":"'Відстеження оцінок'!C559&COUNTIF('Відстеження оцінок'!$C$4:C559,'Відстеження оцінок'!C559)","v":"0"}]
[null,557,{"$f":"'Відстеження оцінок'!C560&COUNTIF('Відстеження оцінок'!$C$4:C560,'Відстеження оцінок'!C560)","v":"0"}]
[null,558,{"$f":"'Відстеження оцінок'!C561&COUNTIF('Відстеження оцінок'!$C$4:C561,'Відстеження оцінок'!C561)","v":"0"}]
[null,559,{"$f":"'Відстеження оцінок'!C562&COUNTIF('Відстеження оцінок'!$C$4:C562,'Відстеження оцінок'!C562)","v":"0"}]
[null,560,{"$f":"'Відстеження оцінок'!C563&COUNTIF('Відстеження оцінок'!$C$4:C563,'Відстеження оцінок'!C563)","v":"0"}]
[null,561,{"$f":"'Відстеження оцінок'!C564&COUNTIF('Відстеження оцінок'!$C$4:C564,'Відстеження оцінок'!C564)","v":"0"}]
[null,562,{"$f":"'Відстеження оцінок'!C565&COUNTIF('Відстеження оцінок'!$C$4:C565,'Відстеження оцінок'!C565)","v":"0"}]
[null,563,{"$f":"'Відстеження оцінок'!C566&COUNTIF('Відстеження оцінок'!$C$4:C566,'Відстеження оцінок'!C566)","v":"0"}]
[null,564,{"$f":"'Відстеження оцінок'!C567&COUNTIF('Відстеження оцінок'!$C$4:C567,'Відстеження оцінок'!C567)","v":"0"}]
[null,565,{"$f":"'Відстеження оцінок'!C568&COUNTIF('Відстеження оцінок'!$C$4:C568,'Відстеження оцінок'!C568)","v":"0"}]
[null,566,{"$f":"'Відстеження оцінок'!C569&COUNTIF('Відстеження оцінок'!$C$4:C569,'Відстеження оцінок'!C569)","v":"0"}]
[null,567,{"$f":"'Відстеження оцінок'!C570&COUNTIF('Відстеження оцінок'!$C$4:C570,'Відстеження оцінок'!C570)","v":"0"}]
[null,568,{"$f":"'Відстеження оцінок'!C571&COUNTIF('Відстеження оцінок'!$C$4:C571,'Відстеження оцінок'!C571)","v":"0"}]
[null,569,{"$f":"'Відстеження оцінок'!C572&COUNTIF('Відстеження оцінок'!$C$4:C572,'Відстеження оцінок'!C572)","v":"0"}]
[null,570,{"$f":"'Відстеження оцінок'!C573&COUNTIF('Відстеження оцінок'!$C$4:C573,'Відстеження оцінок'!C573)","v":"0"}]
[null,571,{"$f":"'Відстеження оцінок'!C574&COUNTIF('Відстеження оцінок'!$C$4:C574,'Відстеження оцінок'!C574)","v":"0"}]
[null,572,{"$f":"'Відстеження оцінок'!C575&COUNTIF('Відстеження оцінок'!$C$4:C575,'Відстеження оцінок'!C575)","v":"0"}]
[null,573,{"$f":"'Відстеження оцінок'!C576&COUNTIF('Відстеження оцінок'!$C$4:C576,'Відстеження оцінок'!C576)","v":"0"}]
[null,574,{"$f":"'Відстеження оцінок'!C577&COUNTIF('Відстеження оцінок'!$C$4:C577,'Відстеження оцінок'!C577)","v":"0"}]
[null,575,{"$f":"'Відстеження оцінок'!C578&COUNTIF('Відстеження оцінок'!$C$4:C578,'Відстеження оцінок'!C578)","v":"0"}]
[null,576,{"$f":"'Відстеження оцінок'!C579&COUNTIF('Відстеження оцінок'!$C$4:C579,'Відстеження оцінок'!C579)","v":"0"}]
[null,577,{"$f":"'Відстеження оцінок'!C580&COUNTIF('Відстеження оцінок'!$C$4:C580,'Відстеження оцінок'!C580)","v":"0"}]
[null,578,{"$f":"'Відстеження оцінок'!C581&COUNTIF('Відстеження оцінок'!$C$4:C581,'Відстеження оцінок'!C581)","v":"0"}]
[null,579,{"$f":"'Відстеження оцінок'!C582&COUNTIF('Відстеження оцінок'!$C$4:C582,'Відстеження оцінок'!C582)","v":"0"}]
[null,580,{"$f":"'Відстеження оцінок'!C583&COUNTIF('Відстеження оцінок'!$C$4:C583,'Відстеження оцінок'!C583)","v":"0"}]
[null,581,{"$f":"'Відстеження оцінок'!C584&COUNTIF('Відстеження оцінок'!$C$4:C584,'Відстеження оцінок'!C584)","v":"0"}]
[null,582,{"$f":"'Відстеження оцінок'!C585&COUNTIF('Відстеження оцінок'!$C$4:C585,'Відстеження оцінок'!C585)","v":"0"}]
[null,583,{"$f":"'Відстеження оцінок'!C586&COUNTIF('Відстеження оцінок'!$C$4:C586,'Відстеження оцінок'!C586)","v":"0"}]
[null,584,{"$f":"'Відстеження оцінок'!C587&COUNTIF('Відстеження оцінок'!$C$4:C587,'Відстеження оцінок'!C587)","v":"0"}]
[null,585,{"$f":"'Відстеження оцінок'!C588&COUNTIF('Відстеження оцінок'!$C$4:C588,'Відстеження оцінок'!C588)","v":"0"}]
[null,586,{"$f":"'Відстеження оцінок'!C589&COUNTIF('Відстеження оцінок'!$C$4:C589,'Відстеження оцінок'!C589)","v":"0"}]
[null,587,{"$f":"'Відстеження оцінок'!C590&COUNTIF('Відстеження оцінок'!$C$4:C590,'Відстеження оцінок'!C590)","v":"0"}]
[null,588,{"$f":"'Відстеження оцінок'!C591&COUNTIF('Відстеження оцінок'!$C$4:C591,'Відстеження оцінок'!C591)","v":"0"}]
[null,589,{"$f":"'Відстеження оцінок'!C592&COUNTIF('Відстеження оцінок'!$C$4:C592,'Відстеження оцінок'!C592)","v":"0"}]
[null,590,{"$f":"'Відстеження оцінок'!C593&COUNTIF('Відстеження оцінок'!$C$4:C593,'Відстеження оцінок'!C593)","v":"0"}]
[null,591,{"$f":"'Відстеження оцінок'!C594&COUNTIF('Відстеження оцінок'!$C$4:C594,'Відстеження оцінок'!C594)","v":"0"}]
[null,592,{"$f":"'Відстеження оцінок'!C595&COUNTIF('Відстеження оцінок'!$C$4:C595,'Відстеження оцінок'!C595)","v":"0"}]
[null,593,{"$f":"'Відстеження оцінок'!C596&COUNTIF('Відстеження оцінок'!$C$4:C596,'Відстеження оцінок'!C596)","v":"0"}]
[null,594,{"$f":"'Відстеження оцінок'!C597&COUNTIF('Відстеження оцінок'!$C$4:C597,'Відстеження оцінок'!C597)","v":"0"}]
[null,595,{"$f":"'Відстеження оцінок'!C598&COUNTIF('Відстеження оцінок'!$C$4:C598,'Відстеження оцінок'!C598)","v":"0"}]
[null,596,{"$f":"'Відстеження оцінок'!C599&COUNTIF('Відстеження оцінок'!$C$4:C599,'Відстеження оцінок'!C599)","v":"0"}]
[null,597,{"$f":"'Відстеження оцінок'!C600&COUNTIF('Відстеження оцінок'!$C$4:C600,'Відстеження оцінок'!C600)","v":"0"}]
[null,598,{"$f":"'Відстеження оцінок'!C601&COUNTIF('Відстеження оцінок'!$C$4:C601,'Відстеження оцінок'!C601)","v":"0"}]
[null,599,{"$f":"'Відстеження оцінок'!C602&COUNTIF('Відстеження оцінок'!$C$4:C602,'Відстеження оцінок'!C602)","v":"0"}]
[null,600,{"$f":"'Відстеження оцінок'!C603&COUNTIF('Відстеження оцінок'!$C$4:C603,'Відстеження оцінок'!C603)","v":"0"}]
[null,601,{"$f":"'Відстеження оцінок'!C604&COUNTIF('Відстеження оцінок'!$C$4:C604,'Відстеження оцінок'!C604)","v":"0"}]
[null,602,{"$f":"'Відстеження оцінок'!C605&COUNTIF('Відстеження оцінок'!$C$4:C605,'Відстеження оцінок'!C605)","v":"0"}]
[null,603,{"$f":"'Відстеження оцінок'!C606&COUNTIF('Відстеження оцінок'!$C$4:C606,'Відстеження оцінок'!C606)","v":"0"}]
[null,604,{"$f":"'Відстеження оцінок'!C607&COUNTIF('Відстеження оцінок'!$C$4:C607,'Відстеження оцінок'!C607)","v":"0"}]
[null,605,{"$f":"'Відстеження оцінок'!C608&COUNTIF('Відстеження оцінок'!$C$4:C608,'Відстеження оцінок'!C608)","v":"0"}]
[null,606,{"$f":"'Відстеження оцінок'!C609&COUNTIF('Відстеження оцінок'!$C$4:C609,'Відстеження оцінок'!C609)","v":"0"}]
[null,607,{"$f":"'Відстеження оцінок'!C610&COUNTIF('Відстеження оцінок'!$C$4:C610,'Відстеження оцінок'!C610)","v":"0"}]
[null,608,{"$f":"'Відстеження оцінок'!C611&COUNTIF('Відстеження оцінок'!$C$4:C611,'Відстеження оцінок'!C611)","v":"0"}]
[null,609,{"$f":"'Відстеження оцінок'!C612&COUNTIF('Відстеження оцінок'!$C$4:C612,'Відстеження оцінок'!C612)","v":"0"}]
[null,610,{"$f":"'Відстеження оцінок'!C613&COUNTIF('Відстеження оцінок'!$C$4:C613,'Відстеження оцінок'!C613)","v":"0"}]
[null,611,{"$f":"'Відстеження оцінок'!C614&COUNTIF('Відстеження оцінок'!$C$4:C614,'Відстеження оцінок'!C614)","v":"0"}]
[null,612,{"$f":"'Відстеження оцінок'!C615&COUNTIF('Відстеження оцінок'!$C$4:C615,'Відстеження оцінок'!C615)","v":"0"}]
[null,613,{"$f":"'Відстеження оцінок'!C616&COUNTIF('Відстеження оцінок'!$C$4:C616,'Відстеження оцінок'!C616)","v":"0"}]
[null,614,{"$f":"'Відстеження оцінок'!C617&COUNTIF('Відстеження оцінок'!$C$4:C617,'Відстеження оцінок'!C617)","v":"0"}]
[null,615,{"$f":"'Відстеження оцінок'!C618&COUNTIF('Відстеження оцінок'!$C$4:C618,'Відстеження оцінок'!C618)","v":"0"}]
[null,616,{"$f":"'Відстеження оцінок'!C619&COUNTIF('Відстеження оцінок'!$C$4:C619,'Відстеження оцінок'!C619)","v":"0"}]
[null,617,{"$f":"'Відстеження оцінок'!C620&COUNTIF('Відстеження оцінок'!$C$4:C620,'Відстеження оцінок'!C620)","v":"0"}]
[null,618,{"$f":"'Відстеження оцінок'!C621&COUNTIF('Відстеження оцінок'!$C$4:C621,'Відстеження оцінок'!C621)","v":"0"}]
[null,619,{"$f":"'Відстеження оцінок'!C622&COUNTIF('Відстеження оцінок'!$C$4:C622,'Відстеження оцінок'!C622)","v":"0"}]
[null,620,{"$f":"'Відстеження оцінок'!C623&COUNTIF('Відстеження оцінок'!$C$4:C623,'Відстеження оцінок'!C623)","v":"0"}]
[null,621,{"$f":"'Відстеження оцінок'!C624&COUNTIF('Відстеження оцінок'!$C$4:C624,'Відстеження оцінок'!C624)","v":"0"}]
[null,622,{"$f":"'Відстеження оцінок'!C625&COUNTIF('Відстеження оцінок'!$C$4:C625,'Відстеження оцінок'!C625)","v":"0"}]
[null,623,{"$f":"'Відстеження оцінок'!C626&COUNTIF('Відстеження оцінок'!$C$4:C626,'Відстеження оцінок'!C626)","v":"0"}]
[null,624,{"$f":"'Відстеження оцінок'!C627&COUNTIF('Відстеження оцінок'!$C$4:C627,'Відстеження оцінок'!C627)","v":"0"}]
[null,625,{"$f":"'Відстеження оцінок'!C628&COUNTIF('Відстеження оцінок'!$C$4:C628,'Відстеження оцінок'!C628)","v":"0"}]